Workbook

Sheet ListAlm
B1: Ver 2021-Jan-06 11:02 | F1: ALARM parts
G2: V16 | AO2: 82 | AQ2: 8.5 | AR2: 8.5 | BG2: 82 | BI2: 8.5 | BJ2: 8.5 | BM2: 3 | BN2: 82 | BP2: 8.5 | BQ2: 8.5 | CW2: END
B3: INDEX | F3: All Ranges must be sorted ALPHABETICALLY on 'Description' | N3: All Ranges must be sorted ALPHABETICALLY on 'Description' | T3: Index | W3: All Ranges must be sorted ALPHABETICALLY on 'Description' | AC3: Index | AE3: All Ranges must be sorted ALPHABETICALLY on 'Description' | AL3: Index | AO3: All Ranges must be sorted ALPHABETICALLY on 'Description' | AT3: Index | AW3: All Ranges must be sorted ALPHABETICALLY on 'Description' | BD3: Index | BG3: All Ranges must be sorted ALPHABETICALLY on 'Description' | BL3: Index | BN3: All Ranges must be sorted ALPHABETICALLY on 'Description' | BU3: Index | CC3: Index | CF3: All Ranges must be sorted ALPHABETICALLY on 'Description' | CM3: Index | CP3: All Ranges must be sorted ALPHABETICALLY on 'Description' | CV3: Index | CW3: END
B4: 1 | G4: SKFire Alarm parts Zach | K4: =+B4+1 -> 2 | AB4: =+K4+1 -> 3 | AE4: Make table: Hochiki SD devices a Japan Corp NON-Domestic | AK4: =1+AB4 -> 4 | BC4: =1+AK4 -> 5 | BG4: http://www.systemsensor.com/en-us/Pages/welcome.aspx | BT4: =1+BC4 -> 6 | BX4: All Ranges must be sorted ALPHABETICALLY on 'Description' | CL4: =1+BT4 -> 7 | CU4: =1+CL4 -> 8 | CW4: END
B5: Bows | K5: Bows | N5: Gentex Devices | W5: Edwards Signals Systems EST & ESL Devices | AB5: Bows | AE5: Hochiki | AK5: Bows | AO5: Honeywell HFS | AW5: Silent Knight SK Devices | BC5: Bows | BG5: System Sensor SS Devices | BN5: Vigilant VS Devices | BT5: Bows | BX5: PANELS | CL5: Bows | CU5: Bows | CW5: END
B6: Dialers | F6: BOWS & LOC | G6: Trilogie | H6: Rounding | K6: Dialers | N6: Detectors & Smokes | O6: =+G6 -> Trilogie | P6: =+H6 -> Rounding | W6: Detectors & Smokes | X6: =+O6 -> Trilogie | Y6: =+P6 -> Rounding | AB6: Dialers | AE6: Detectors & Smokes | AF6: =+X6 -> Trilogie | AG6: =+Y6 -> Rounding | AK6: Dialers | AO6: Detectors & Smokes | AP6: =+AF6 -> Trilogie | AQ6: =+AG6 -> Rounding | AW6: Addressable Devices | AX6: =+AP6 -> Trilogie | AY6: =+AQ6 -> Rounding | BC6: Dialers | BG6: Detectors & Smokes | BH6: =+AX6 -> Trilogie | BI6: =+AY6 -> Rounding | BN6: Detectors & Smokes | BO6: =+BH6 -> Trilogie | BP6: =+BI6 -> Rounding | BT6: Dialers | BX6: EST/Edwards GE | BY6: =+BO6 -> Trilogie | BZ6: =+BP6 -> Rounding | CF6: Power Supplies Batteries | CG6: =+BY6 -> Trilogie | CH6: =+BZ6 -> Rounding | CL6: Dialers | CP6: Parts & Accessories | CQ6: =+CG6 -> Trilogie | CR6: =+CH6 -> Rounding | CU6: Dialers | CW6: END
B7: EST | F7: Description | G7: $ | H7: $2 | I7: Notes | K7: EST | N7: Description | O7: $ | P7: $2 | Q7: Notes | W7: Description | X7: $ | Y7: $2 | Z7: Notes | AB7: EST | AE7: Description | AF7: $ | AG7: $CP | AH7: Notes | AK7: EST | AO7: Description | AP7: $ | AQ7: $2 | AR7: Notes | AW7: Description | AX7: $ | AY7: $2 | AZ7: Notes | BC7: EST | BG7: Description | BH7: $ | BI7: $2 | BJ7: Notes | BN7: Description | BO7: $ | BP7: $2 | BQ7: Notes | BT7: EST | BX7: Description | BY7: $ | BZ7: $2 | CA7: Notes | CF7: Description | CG7: $ | CH7: $2 | CI7: Notes | CL7: EST | CP7: Description | CQ7: $ | CR7: $2 | CS7: Notes | CU7: EST | CW7: END
C8: Detect&Smokes | F8: BOWS Remote | H8: 4000 | L8: Detect&Smokes | N8: GCC 24 C R Horn Strobe Ceiling | O8: 41.5 | P8: 42 | W8: ED-KI PD Analog Photo/Smoke add a base | Y8: 39 | Z8: Link | AC8: Detect&Smokes | AE8: Hochiki SD505-APS Addressable P/E Smoke Head Hochiki | AG8: 48.00 | AL8: Detect&Smokes | AO8: HFS GW-FCI Addressable Smoke Detectors-Sounder Bases | AQ8: 51 | AW8: SK-Acclimate Mult-Criteria Detector W/ Base | AY8: 58.99 | BD8: Detect&Smokes | BG8: Detector Carbon Monoxide with Test feature 12/24V BK CO1224T | BI8: 40 | BN8: VS GSA-HFS CP-44 Heat detector intelligent Edwards loop only | BP8: 44 | BU8: Detect&Smokes | BX8: Annunciator ED-KRLCD No Comm Cntrl White En | BZ8: 254 | CF8: 05A Battery for FACP 12v 5Amp | CH8: 19 | CM8: Detect&Smokes | CP8: 4-Square Boxes each with cover | CR8: 15 | CV8: Detect&Smokes | CW8: END
C9: Horns | F9: TelSet GENERIC | H9: 45 | L9: Horns | N9: GEC3 24 R H/S Wall | O9: 40.5 | P9: 41 | W9: ED-KI PDB Base for KI PD Detector mounting base aka KI SB | Y9: 5.5 | Z9: Link | AC9: Horns | AE9: zSpare 1 | AG9: 999 | AL9: Horns | AO9: HFS GW-FCI FCI XP95-Multi sensor detector (ISA) | AQ9: 75 | AR9: Link | AW9: SK-Beam Beam Detector | AY9: 554.99 | BD9: Horns | BG9: Honeywell System Sensor BK5601 P 135 White | BI9: 11 | BN9: VS GSA-HRS Heat detector Fixed/Rate0f-Rise intelligent Edwards loop only | BU9: Horns | BX9: Annunciator EST 36 ANN/B 3-LCD Display, 3/6ANN 3-6AN/B Back Box | BZ9: =218+N("Annun")+532+76+N("Price of Box") -> 826 | CA9: Spectrum | CF9: 07A Battery for FACP 12v 7Amp | CH9: 15.75 | CI9: ADI | CM9: Horns | CP9: Adapter -Class A | CR9: 68 | CV9: Horns | CW9: END
C10: EST HS | F10: TelSet Vigilant InPanel TelSet for -BOWS Optional extra | H10: 2000 | L10: EST HS | N10: GES3 24 R Strobe Wall | O10: 30.5 | P10: 31 | T10: Index | W10: ED-KI PDB4 Base 4" w/trim Skirt for KI PD smoke | Y10: 5.5 | Z10: Link | AC10: EST HS | AE10: zSpare 2 | AG10: 999 | AL10: EST HS | AO10: HFS GW-FCI FCI XP95-Thermal heat detector (ISA) | AQ10: 64 | AR10: Link | AT10: Index | AW10: SK-Beam-T Beam Detector W/ Test | AY10: 742.99 | BD10: EST HS | BG10: Honeywell System Sensor BK5602 Fixed-Rate-of-Rise 190 Temp | BI10: 11 | BL10: Index | BN10: VS GSA-PS Photoelectric Smoke Detector Intelligent | BP10: 50 | BU10: EST HS | BX10: ED GSA-CT-1 Single Input Alarm Contacts for Riser Stack == SK Monitor | BZ10: 35 | CC10: Index | CF10: 08A Battery for FACP 12v 8Amp | CH10: 22 | CM10: EST HS | CP10: Back-boxes, hangers etc bulk | CR10: 500 | CV10: EST HS | CW10: END
C11: PS&Batt | F11: Vigilant VM-LOC | H11: 1400 | I11: LED inc NC | L11: PS&Batt | N11: GOELP Low Profile BB for Outdoor HS | O11: 40 | P11: 40 | W11: Edwards EST PCOS Photoelectric Smoke-Carbon Monoxide Combo with ED-SB4ULF Sounder Base | Y11: =81+N("CO+Smoke combo")+79+N("sounderbase") -> 160 | AC11: PS&Batt | AE11: zSpare 3 | AG11: 999 | AL11: PS&Batt | AO11: HFS GW-FCI P Photoelectric Smoke | AQ11: 0 | AW11: SK-Control Control Module | AY11: 56.99 | BD11: PS&Batt | BG11: Honeywell System Sensor BK5604 Fixed-Temp 194 Temp | BI11: 11 | BN11: VS GSA-SB Detector Standard Base | BP11: 7.3 | BU11: PS&Batt | BX11: ED GSA-CT-2 Dual Input Alarm Contacts for Riser Stack === SK Monitor 2 | BZ11: 63 | CF11: 08A EK-1280 for TelGuard Dialer 12v 8Amp | CH11: 20 | CI11: ADI | CM11: PS&Batt | CP11: BRK 1st Alert SC9120 B 120V AC/DC w/9V battery Ionisation Smoke and CO Alarm | CR11: 32 | CV11: PS&Batt | CW11: END
C12: EST Pull | F12: Voice Evac 50 watt Gray EVAX50 | H12: 1890 | L12: EST Pull | N12: WGEC75WR H/S Outdoor with w/water-proof-backbox | O12: 57 | P12: 60 | W12: Edwards EST RoR-Fixed Heat Detector and Base 284B-PL | Y12: =11+12 -> 23 | AC12: EST Pull | AE12: =SUBTOTAL(103,Table54[Description]) -> 4 | AH12: =SUBTOTAL(103,Table54[Notes]) -> 0 | AL12: EST Pull | AO12: HFS GW-FCI PT Photoelectric Smoke with thermal 135degree | AQ12: 0 | AW12: SK-Control-6 6 Output Control Module | AY12: 340.99 | BD12: EST Pull | BG12: Honeywell System Sensor Photo Electric smoke 2W-B Conventional | BI12: 39 | BN12: VS GSA-SD Detector Duct Intelligent | BP12: 113 | BU12: EST Pull | BX12: Edwards FireShield 5-zone BARE (Deprecated) | BZ12: 240 | CF12: 09V Battery for Alarm Panic Door Alkaline 9v | CH12: 10 | CM12: EST Pull | CP12: BW[G|R]-375 Protective Transformer box 4.625 x 5.75 x 3.75 | CR12: 20 | CS12: ADI | CV12: EST Pull | CW12: END
C13: StrobesOnly | F13: Voice Evac SK-SKE-450 | H13: 1225 | L13: StrobesOnly | W13: Edwards EST SafeAir 12/24V \Carbon Monox Detector and Base 260-CO | Y13: 55 | AC13: StrobesOnly | AL13: StrobesOnly | AO13: HFS GW-FCI XP95 4” Mounting Base | AQ13: 0 | AR13: Link | AW13: SK-Duct Duct Detector W/ Photo | AY13: 140 | BD13: StrobesOnly | BG13: Spare 1 | BI13: 44 | BN13: VS-PS Photo Detector Analog Addressable Vernal | BP13: 99 | BQ13: Link | BU13: StrobesOnly | BX13: Edwards FireShield 5-zone w/ Dialer +2x Batteries (new P/N ED-EFSC 502) | BZ13: =300+110+25 -> 435 | CF13: 12 V SLAA12-12F2 12Amp Duracell | CH13: 31 | CI13: Batteries and Bulbs | CM13: StrobesOnly | CP13: Cable Ties (Zip Ties) | CR13: 25 | CV13: StrobesOnly | CW13: END
C14: zMisc | F14: zSpare-1 | H14: 20 | L14: zMisc | W14: Edwards EST SIGA2-PCOS Photoelectric Carbon & Smoke detector w/CO detector Intelligent DEPRECATED | Y14: 0 | AC14: zMisc | AL14: zMisc | AO14: HFS GW-FCI XP95 6” Addressable Sounder Base | AQ14: 0 | AR14: Link | AW14: SK-FIRE-CO Addressable Combo Fire/ CO Det | AY14: 126.99 | BD14: zMisc | BG14: =SUBTOTAL(103,Table11[Description]) -> 6 | BN14: zSpare 1 | BP14: 25 | BU14: zMisc | BX14: ES DHS-24120c Mag Door Holder ea | BZ14: 51 | CF14: 12 V SLAA12-18F2 18Amp Duracell | CH14: 55 | CI14: Batteries and Bulbs | CM14: zMisc | CP14: Conduit EMT 0.5" diam. 200ft roll @ $30 per 100 | CR14: 60 | CS14: from CED | CV14: zMisc | CW14: END
C15: zOther | F15: zSpare-2 | H15: 20 | L15: zOther | N15: Horns | W15: Edwards EST SIGA2-PS Photoelectric Smoke detector Intelligent DEPRECATED | Y15: 0 | AC15: zOther | AL15: zOther | AO15: HFS GW-FCI XP95 6” E-Z Fit Mounting Base | AQ15: 0 | AR15: Link | AW15: SK-Heat Heat Detector W/ Base | AY15: 46.99 | BD15: zOther | BN15: =SUBTOTAL(103,Table25[Description]) -> 7 | BU15: zOther | BX15: Monitor Module EST FA Control Monitor Module 6254A Relay discontinued | BZ15: 0 | CF15: 12V Battery Dura12-8F SLA | CH15: 16 | CM15: zOther | CP15: Conduit EMT 1.0" diam. 100ft roll @ $60 per 100 | CR15: 60 | CS15: from CED | CV15: zOther | CW15: END
B16: FACP | F16: zSpare-3 | H16: 20 | K16: FACP | W16: Edwards EST SIGA-PCD Photoelectric Carbon & Smoke detector w/CO detector Intelligent | Y16: 140 | AB16: FACP | AK16: FACP | AO16: HFS GW-FCI XP95 6” Low Profile Relay Base | AQ16: 0 | AR16: Link | AW16: SK-Heat-HT High Temp Heat Detector W/ Base | AY16: 46.99 | BC16: FACP | BT16: FACP | BX16: Monitor Module EST FA Control Monitor Module MR201/C | BZ16: 43 | CF16: 12V Battery for FACP 12Amp | CH16: 25 | CL16: FACP | CP16: Conduit Seal Tight per foot | CR16: 1.2 | CU16: FACP | CW16: END
C17: EST-GE-FireShield | L17: EST-GE-FireShield | W17: Edwards EST SIGA-PD Smoke detector Base NEW | Y17: 84 | AC17: EST-GE-FireShield | AL17: EST-GE-FireShield | AO17: HFS GW-FCI XP95 Isolator Base | AQ17: 0 | AR17: Link | AW17: SK-Heat-ROR Rate Of Rise Heat Det. W/ Base | AY17: 48.5 | BD17: EST-GE-FireShield | BU17: EST-GE-FireShield | BX17: Monitor Module EST FA Control Monitor Module PAM-1 | BZ17: 25 | CF17: 18A Battery for FACP 12v 18Amp | CH17: 40 | CM17: EST-GE-FireShield | CP17: Connector WAGO 222-413 3-pin each: | CR17: 0.51 | CV17: EST-GE-FireShield | CW17: END
C18: Honeywell-Allied | F18: All Ranges must be sorted ALPHABETICALLY | L18: Honeywell-Allied | W18: Edwards EST SIGA-PS1 Photoelectric Smoke detector Intelligent DEPRECATED | Y18: 0 | Z18: Link | AC18: Honeywell-Allied | AL18: Honeywell-Allied | AO18: HFS GW-FCI XP95-Ion smoke detector (ISA) | AQ18: 85 | AR18: Link | AW18: SK-Ion Ion Detector W/ Base | AY18: 59.99 | BD18: Honeywell-Allied | BU18: Honeywell-Allied | BX18: Relay ED GSA-CR Control Relay for Door Mags or Elevator | BZ18: 44 | CF18: 26/28 SLAA12-26NB Duracell | CH18: 72 | CI18: Batteries and Bulbs | CM18: Honeywell-Allied | CP18: Connector WAGO 222-415 5-pin each: | CR18: 0.75 | CV18: Honeywell-Allied | CW18: END
C19: Silent Knight | F19: Go to Data, Click the Funnel to turn Header Arrow on-off | L19: Silent Knight | T19: Index | W19: Edwards EST SIGA-PS2 Photoelectric Smoke detector Intelligent NEW HUH | Y19: 99 | AC19: Silent Knight | AL19: Silent Knight | AO19: HFS GW-FCI XP95-Photo smoke detector (ISA) | AQ19: 69.5 | AR19: Link | AT19: Index | AW19: SK-Iso Isolator Module | AY19: 47 | BD19: Silent Knight | BL19: Index | BU19: Silent Knight | BX19: Relay ED GSA-CRR Control Relay for Door Mags or Elevator Reverse Polarity | BZ19: 52 | CC19: Index | CF19: 26A Battery for FACP 12v 26Amp | CH19: 61 | CM19: Silent Knight | CP19: Crash Bar Advantex 1001 EX w/LED & Battery Bill Cusick 303-771-0152 | CR19: 1600 | CS19: Data | CV19: Silent Knight | CW19: END
C20: Vigilant | L20: Vigilant | W20: Edwards EST SIGA-SB Smoke detector Base | Y20: 13 | AC20: Vigilant | AE20: Horns | AL20: Vigilant | AO20: zSpare 1 | AQ20: 0 | AW20: SK-Minimon Input Mini-Monitor Module | AY20: 40 | BD20: Vigilant | BG20: Horns | BU20: Vigilant | CF20: =SUBTOTAL(103,Table30[Description]) -> 12 | CM20: Vigilant | CP20: Crash Bar V40 Robert Merril 801-263-2700 | CR20: =340+N("CostP")+225+N("InstallP") -> 565 | CS20: Data | CV20: Vigilant | CW20: END
B21: GenTex | K21: GenTex | W21: Edwards EST SIGA-SB4 Smoke detector Base standard 4" | Y21: 15 | AB21: GenTex | AE21: Description | AF21: $ | AG21: $CP | AH21: Notes | AK21: GenTex | AO21: =SUBTOTAL(103,Table37[Description]) -> 13 | AW21: SK-Mon-10 10 Input Monitor Module | AY21: 363.99 | BC21: GenTex | BG21: Description | BH21: $ | BI21: $2 | BJ21: Notes | BT21: GenTex | CL21: GenTex | CP21: Fire Alarm Storage Cabinet | CR21: 92 | CU21: GenTex | CW21: END
C22: All Devices | L22: All Devices | W22: =SUBTOTAL(103,Table24[Description]) -> 14 | AC22: All Devices | AE22: Add Horns HK Desc only data | AG22: 999 | AL22: All Devices | AW22: SK-Monitor for tampers & flows needs 4" box & ELR 47k terminator | AY22: 45 | BD22: All Devices | BG22: SystemSensor SWHK Horn, Red, Outdoor (includes plastic weatherproof back box) | BI22: 0 | BN22: Horns | BU22: All Devices | BX22: Panels | CF22: All Ranges must be sorted ALPHABETICALLY on 'Description' | CM22: All Devices | CP22: FL-IPSPLT Cat5 Reverse Splitter | CR22: 15 | CS22: ADI | CV22: All Devices | CW22: END
F23: Dialer Units | AE23: Make an Horns HK etAl table here | AG23: 999 | AW23: SK-Monitor-2 2 Input Monitor Module | AY23: 82 | BG23: Spare 1 | BI23: 44 | BN23: Description | BO23: $ | BP23: $CP | BQ23: Notes | BX23: Honeywell (AlliedSignal) | CP23: Glow Rods 4-per pack (Fish sticks) | CR23: 25 | CW23: END
F24: Description | G24: $ | H24: $2 | I24: Notes | AE24: zSpare HK Hornz | AG24: 9999 | AW24: SK-Photo Photo Detector W/ Base | AY24: 50.99 | BG24: =SUBTOTAL(103,Table21[Description]) -> 2 | BN24: Add VS Horn data | BP24: 999 | BX24: Description | BY24: $1 | BZ24: $2 | CA24: Notes | CP24: Line Cord (Power Cord) 6ft 3 Conductor | CR24: 4 | CW24: END
B25: Hochiki | F25: DSC-3G 4010-CF Universal Wireless Cellular Dialer AT&T Deprecated | H25: 271 | I25: ArLenco | K25: Hochiki | N25: Horn-Strobes | O25: R-red W-white | AB25: Hochiki | AE25: =SUBTOTAL(103,Table53[Description]) -> 3 | AH25: =SUBTOTAL(103,Table53[Notes]) -> 0 | AK25: Hochiki | AW25: SK-Photo-T Photo Thermal Detector W/ Base | AY25: 55.99 | BC25: Hochiki | BN25: Make a VS Horn table here | BP25: 9999 | BT25: Hochiki | BX25: Firelite ANN-80 80char LCD serial Annunciator | BZ25: 238 | CA25: Link | CL25: Hochiki | CP25: Raceway WBox ADI 0.75 6Ft lengths 2-Pack | CR25: =+N("Cost ")+10*4+N("Add allowance for fittings ") -> 40 | CS25: Raceway & Connectors | CU25: Hochiki | CW25: END
F26: DSC-3G-4010-CF UPG Board | H26: 85.14 | I26: ArLenco | W26: Horns | AO26: Horns | AW26: SK-Relay Relay Module | AY26: 62 | BN26: zSpare 1 | BP26: 9999 | BX26: Notifier Addressable Control Mod. NOT-FCM-1-RC | BZ26: 62 | CP26: Raceway WBox ADI 1.25 6Ft lengths 2-Pack | CR26: =+N("Cost ")+15*4+N("Add allowance for fittings ") -> 60 | CS26: Raceway & Connectors | CW26: END
B27: Honeywell | F27: DSC-4G 4010-CF Universal Wireless Cellular Dialer LTE AT&T NEW | H27: 271 | K27: Honeywell | W27: Description | X27: $ | Y27: $CP | Z27: Notes | AB27: Honeywell | AK27: Honeywell | AO27: Description | AP27: $ | AQ27: $2 | AR27: Notes | AW27: SK-Relay-6 6 Relay Module | AY27: 300.99 | BC27: Honeywell | BN27: Total | BQ27: =SUBTOTAL(103,Table51[Notes]) -> 0 | BT27: Honeywell | CF27: Pull Stations | CL27: Honeywell | CP27: Raceway WBox ADI 1.75 6Ft lengths 2-Pack | CR27: =+N("Cost ")+25*4+N("Add allowance for fittings ") -> 100 | CS27: Raceway & Connectors | CU27: Honeywell | CW27: END
C28: HW D&Smoke | F28: DSC-GS-15 ANT | H28: 60 | I28: ArLenco | L28: HW D&Smoke | W28: Add EST zOther data | Y28: 999 | AC28: HW D&Smoke | AL28: HW D&Smoke | AO28: Add HW Horns data | AQ28: 123 | AW28: SK-Relaymon-2 Two-In/ Two-Out Module | AY28: 206.99 | BD28: HW D&Smoke | BU28: HW D&Smoke | CF28: Description | CG28: $ | CH28: $2 | CI28: Notes | CM28: HW D&Smoke | CP28: Raceway WireMold 1.0" | CR28: 40 | CV28: HW D&Smoke | CW28: END
C29: HW Horns | F29: DSC-GS-25 ANT | H29: 110 | I29: ArLenco | L29: HW Horns | W29: Made a EST zOther table here | Y29: 999 | AC29: HW Horns | AE29: Horn-Strobes | AL29: HW Horns | AO29: Made a HW HORNZ table here | AQ29: 456 | AW29: SK-Zone Zone Module | AY29: 72.99 | BD29: HW Horns | BG29: Horn-Strobes | BU29: HW Horns | BX29: Panels | CF29: Conventional | CH29: 20 | CM29: HW Horns | CP29: Resistors ELR 47k | CR29: 1.5 | CV29: HW Horns | CW29: END
C30: HW Horn-Strobes | F30: DSC-GS-25 ANTQ Q Band | H30: 110 | I30: ArLenco | L30: HW Horn-Strobes | T30: Index | W30: zSpare 1 | Y30: 9999 | AC30: HW Horn-Strobes | AE30: Description | AF30: $ | AG30: $CP | AH30: Notes | AL30: HW Horn-Strobes | AO30: =SUBTOTAL(103,ListAlm!$AO$28:$AO$29) -> 2 | AT30: Index | AW30: SK-Zone-6 6 Zone Module | AY30: 367.99 | BD30: HW Horn-Strobes | BG30: Description | BH30: $ | BI30: $2 | BJ30: Notes | BL30: Index | BU30: HW Horn-Strobes | BX30: Silent Knight | CC30: Index | CF30: zSpare 1 | CH30: 20 | CM30: HW Horn-Strobes | CP30: RJ31X Phone Jack Cat5 Biscuit for TelCo POTS to Panel. 2 per panel | CR30: 5 | CV30: HW Horn-Strobes | CW30: END
C31: HW PS & Batt | F31: DSC-LTE 15 ANT | H31: 55 | I31: ADI | L31: HW PS & Batt | W31: =SUBTOTAL(103,Table52[Description]) -> 3 | Z31: =SUBTOTAL(103,Table52[Notes]) -> 0 | AC31: HW PS & Batt | AE31: Add HornStrobe HKDesc only data | AG31: 999 | AL31: HW PS & Batt | AW31: zSpare 1 | AY31: 20 | BD31: HW PS & Batt | BG31: SystemSensor P2R Red 2-wire Horn/Strobe Std. Candela | BI31: 50 | BN31: Horn-Strobes | BU31: HW PS & Batt | BX31: Description | BY31: $ | BZ31: $2 | CA31: Notes | CM31: HW PS & Batt | CP31: Seal Tite | CV31: HW PS & Batt | CW31: END
C32: HW PullStation | F32: DSC-LTE 25 ANT | H32: 98 | I32: ADI | L32: HW PullStation | AC32: HW PullStation | AE32: Make an HornStrobe HKetAl table here | AG32: 999 | AL32: HW PullStation | AO32: Horn-Strobes | AW32: zSpare 2 | AY32: 20 | BD32: HW PullStation | BG32: SystemSensor P2RC Red 2-wire Horn/Strobe Ceiling Std. Candela | BI32: 50 | BN32: Description | BO32: $ | BP32: $CP | BQ32: Notes | BU32: HW PullStation | BX32: SK-2 Two-Zone Panel Conventional | BZ32: 336 | CM32: HW PullStation | CP32: Strain Relief 1/2 " | CR32: 5 | CV32: HW PullStation | CW32: END
C33: HW StrobesOnly | F33: EST 3 Dialer MODCOM | H33: 435 | I33: Spectrum | L33: HW StrobesOnly | N33: Pull Stations | AC33: HW StrobesOnly | AE33: zSpares Horn Strobes 1 | AG33: 999 | AL33: HW StrobesOnly | AO33: Description | AP33: $ | AQ33: $2 | AR33: Notes | AW33: =SUBTOTAL(103,Table35[Description]) -> 25 | BD33: HW StrobesOnly | BG33: SystemSensor PC2RL Red 2-wire Horn/Strobe Ceiling Std. Candela | BI33: 50 | BN33: M85001-0559 Horn-Strobe Field Configurable Genesis | BP33: 999 | BU33: HW StrobesOnly | BX33: SK-4 Four-zone panel Conventional | BZ33: 347 | CM33: HW StrobesOnly | CP33: Surge Protector 6-Outlet x2 per pack (5.50 ea) | CR33: 11 | CV33: HW StrobesOnly | CW33: END
C34: zMisc | F34: LTE Universal Wireless Commercial Fire Alarm Communicator | H34: 275 | I34: ADI | L34: zMisc | W34: Horn-Strobes | X34: R-red W-white | AC34: zMisc | AE34: =SUBTOTAL(103,Table55[Description]) -> 3 | AH34: =SUBTOTAL(103,Table55[Notes]) -> 0 | AL34: zMisc | AO34: Add HW Horn STROBE data | AQ34: 22 | BD34: zMisc | BG34: SystemSensor P2RH Red or W 2-wire Horn/Strobe Hi-Candela | BI34: 50 | BN34: zSpare 1 | BP34: 999 | BU34: zMisc | BX34: SK-5104B Six-zone | BZ34: 276 | CF34: Potter Electric | CM34: zMisc | CP34: SystemSensor SA-WBBW or R Metal Weatherproof Backbox | CR34: 18 | CV34: zMisc | CW34: END
C35: zOther | F35: SA-DACT Dialer unit for VS1 & VS2 | H35: 140 | I35: ADI | L35: zOther | W35: Description | X35: $ | Y35: $2 | Z35: Notes | AC35: zOther | AL35: zOther | AO35: Made a HW HornStrobe table here | AQ35: 777 | BD35: zOther | BG35: SystemSensor P2RH Red or W 2-wire Horn/Strobe Wall Mount | BI35: 50 | BN35: =SUBTOTAL(103,Table4[Description]) -> 2 | BQ35: =SUBTOTAL(103,Table4[Notes]) -> 0 | BU35: zOther | BX35: SK-5208 Ten-zone basic, expandable to 30. Dialer builtin. conventional | BZ35: 720 | CA35: Data | CF35: Description | CG35: $ | CH35: $2 | CI35: Notes | CM35: zOther | CP35: Tape electrical insulating roll each: | CR35: 2 | CV35: zOther | CW35: END
B36: HW System Sensor | F36: SK-5128 Remote Dialer (Must be after 1999 or no ContactID) | H36: 225 | I36: ADI or Arlenco | K36: HW System Sensor | W36: Horn Strobe Ceiling ED CF-HDVM Horn Strobe Ceiling mounted | Y36: 56 | AB36: HW System Sensor | AK36: HW System Sensor | BC36: HW System Sensor | BG36: SystemSensor P2RK Red or W 2-wire Horn/Strobe Outdoor w/plastic weather proof backbox (FDC) | BI36: 85 | BT36: HW System Sensor | BX36: SK-5235 LCD Remote Annunciator F/5208 R Conventional | BZ36: 165 | CF36: Potter RTSO Room Temperature Switch | CH36: 51.81 | CI36: Arlenco | CL36: HW System Sensor | CP36: Vigilant CT-1 Single Input Alarm Contacts for Riser Stack == SK Monitor | CR36: 35 | CU36: HW System Sensor | CW36: END
C37: SS D&Smokes | F37: SK-IP-2 IP Dialer | H37: 487 | L37: SS D&Smokes | W37: Horn Strobe Ceiling EG C-HDVM Horn Strobe Ceiling Mounted (Edwards Genesis Ceiling) | Y37: 56 | AC37: SS D&Smokes | AL37: SS D&Smokes | BD37: SS D&Smokes | BG37: SystemSensor P2RL Red 2-wire Horn/Strobe Wall Std. Candela | BI37: 50 | BU37: SS D&Smokes | BX37: SK-5495 | BZ37: 335 | CF37: Total | CI37: =SUBTOTAL(103,Table59[Notes]) -> 1 | CM37: SS D&Smokes | CP37: Vigilant CT-2 Dual Input Alarm Contacts for Riser Stack === SK Monitor 2 | CR37: 63 | CV37: SS D&Smokes | CW37: END
C38: SS Horns | F38: SK-IP-2 UD Dialer with remote testing-login access | H38: 585 | L38: SS Horns | W38: Horn Strobe ED MG1F-HDVM Horn Strobe Red w/Fire label | Y38: 25 | AC38: SS Horns | AE38: Power Supplies & Batteries | AL38: SS Horns | AW38: Silent Knight SK Devices | BD38: SS Horns | BG38: SystemSensor P2W Horn/Strobe White | BI38: 48 | BU38: SS Horns | BX38: SK-5600 IntelliKnight 25 point Addressable | BZ38: 420 | CM38: SS Horns | CP38: Weatherproof Box | CR38: 500 | CV38: SS Horns | CW38: END
C39: SS HornStrobes | F39: Starlink Antenna 30 50 70 CHECK this | H39: 200 | L39: SS HornStrobes | N39: Strobes only | W39: Horn Strobe ED MG1F-HDVM Horn Strobe White w/Fire label | Y39: 27 | AC39: SS HornStrobes | AE39: Description | AF39: $ | AG39: $CP | AH39: Notes | AL39: SS HornStrobes | AW39: Detectors & Smokes | BD39: SS HornStrobes | BG39: SystemSensor P2W White 2-wire Horn/Strobe Std. Candela | BI39: 48 | BU39: SS HornStrobes | BX39: SK-5635 LCD Remote Annunciator F/5600 R/W | BZ39: 220 | CM39: SS HornStrobes | CP39: Wire -Bell per xx ft roll | CR39: 20 | CV39: SS HornStrobes | CW39: END
C40: SS StrobesOnly | F40: Starlink FL32-FACP-LTEVS-Fire 12/24/120Vw/Communicator Add 2x 12V8Ah batteries | H40: 575 | I40: ArLenco | L40: SS StrobesOnly | T40: Index | W40: Horn Strobe LED Clear EG1 -AVWF Horn Strobe White w/Fire label | Y40: 39 | AC40: SS StrobesOnly | AL40: SS StrobesOnly | AO40: Power Supplies & Batteries | AT40: Index | AW40: Description | AX40: $ | AY40: $2 | AZ40: Notes | BD40: SS StrobesOnly | BG40: SystemSensor P2WC White 2-wire Horn/Strobe Ceiling Std. Candela | BI40: 50 | BL40: Index | BN40: Power Supplies & Batteries | BU40: SS StrobesOnly | BX40: SK-5700 IntelliKnight 50 to 100 point Addressable DEPRECATED | BZ40: 527 | CC40: Index | CM40: SS StrobesOnly | CP40: Wire -Fire 14/2 per 1000 ft roll Plenum | CR40: 166 | CV40: SS StrobesOnly | CW40: END
C41: SS zMisc | F41: Starlink SLE-LTEV-CFB commercial CDMA Dialer | H41: 190 | I41: ArLenco | L41: SS zMisc | W41: Horn Strobe Low Freq ED G4LFWF-HVM Horn Strobe Low Freq White Fire Mark | Y41: 61 | AC41: SS zMisc | AL41: SS zMisc | AO41: Description | AP41: $ | AQ41: $2 | AR41: Notes | AW41: Add SK Detect data | AY41: 20 | BD41: SS zMisc | BG41: SystemSensor P2WH LF Horn Strobe | BI41: 78 | BN41: Description | BO41: $ | BP41: $2 | BQ41: Notes | BU41: SS zMisc | BX41: SK-5808 IntelliKnight 127 to 198 point Addressable DEPRECATED | BZ41: 726 | CM41: SS zMisc | CP41: Wire -Fire 14/2 per 250 ft roll Plenum @ fifty Cents per Ft | CR41: =250*0.5 -> 125 | CV41: SS zMisc | CW41: END
B42: Silent Knight | F42: Starlink SLE-LTEV-CFB-PS RADIO FIRE W/ Power supply | H42: 187 | I42: ArLenco | K42: Silent Knight | W42: Horn Strobe Outdoor ED WGFF HVM C Horn Strobe Outdoor White Fire Mark | Y42: =77+N("back box") +20 -> 97 | AB42: Silent Knight | AK42: Silent Knight | AO42: Add HW Power Supply Data | AQ42: 123 | AW42: SK-Heat Heat Detector W/ Base | AY42: 46.99 | BC42: Silent Knight | BG42: SystemSensor P2WK 2-Wire Horn/Strobe, Std. Candela, White, Outdoor (w/plastic weatherproof backbox) | BI42: 95 | BN42: VS 2 Booster Power Supplies for VS-2 | BP42: 1800 | BT42: Silent Knight | BX42: SK-5820XL IntelliKnight 127 or 792 point w/SystemSensor w/EVS | BZ42: 2400 | CL42: Silent Knight | CP42: Wire -Fire 14/2 per 500 ft roll Plenum | CR42: 83 | CU42: Silent Knight | CW42: END
C43: Addressable Devices | F43: Starlink SLE-LTEV-Fire 12/24 Volt Universal Commercial Sole Path communicator | H43: 150 | I43: ArLenco | L43: Addressable Devices | W43: zSpare 1 | Y43: 20 | AC43: Addressable Devices | AL43: Addressable Devices | AO43: HW HPF2456 24V 6A Fire Alarm NAC Power Supply | AQ43: 343 | AW43: SK-Heat-HT High Temp Heat Detector W/ Base | AY43: 46.99 | BD43: Addressable Devices | BG43: SystemSensor SPSCW Speaker Strobe Ceiling mount | BI43: 68 | BN43: VS E-BPS-10 Amp Hr | BP43: 423 | BU43: Addressable Devices | BX43: SK-5820XL IntelliKnight 127 to 792 point w/SystemSensor | BZ43: 1100 | CM43: Addressable Devices | CP43: Wire -Fire 14/4 per 500 ft roll Plenum | CR43: 182 | CV43: Addressable Devices | CW43: END
C44: Horns | F44: Starlink SLE-LTEVI-Fire 12/24 Volt Universal Commercial DUAL Path communicator | H44: 190 | I44: ArLenco | L44: Horns | W44: zSpare 2 | Y44: 20 | AC44: Horns | AL44: Horns | AO44: HW PS Table 1 | AQ44: 456 | AW44: SK-Heat-ROR Rate Of Rise Heat Det. W/ Base | AY44: 48.5 | BD44: Horns | BN44: VS E-BPS-6 Amp Hr EBSP6A | BP44: 270 | BU44: Horns | BX44: SK-5860 LCD Remote Annunciator F/5700/5820/5808 R/G Addressable | BZ44: 275 | CM44: Horns | CP44: Wire -Fire 16/2 per 500 ft roll Plenum | CR44: 56 | CV44: Horns | CW44: END
C45: Horn-Strobes | F45: Telguard TG-7LAF02 AT&T | H45: 320 | I45: ADI | L45: Horn-Strobes | AC45: Horn-Strobes | AL45: Horn-Strobes | AO45: HW PS Table 2 | AQ45: 789 | AW45: Spare-01 | AY45: 999 | BD45: Horn-Strobes | BN45: M85005-0125 MIRBPS6A & 10A Power Supply Remote Booster | BU45: Horn-Strobes | BX45: SK-6700 IntelliKnight 50 to 100 point Addressable One SLC | BZ45: 595 | CM45: Horn-Strobes | CP45: Wire -Fire 16/4 per 500 ft roll NON-Plenum | CR45: 116 | CV45: Horn-Strobes | CW45: END
C46: SK PS & Batt | F46: Telguard TG-7LVF01 VZN | H46: 320 | I46: ADI | L46: SK PS & Batt | AC46: SK PS & Batt | AE46: Pull Stations | AL46: SK PS & Batt | AO46: =SUBTOTAL(103,ListAlm!$AO$42:$AO$45) -> 4 | AW46: Spare-02 | AY46: 999 | BD46: SK PS & Batt | BN46: zSpare 1 | BP46: 200 | BU46: SK PS & Batt | BX46: SK-6808 up to a max of 198 point replaces 5808 | BZ46: 831 | CM46: SK PS & Batt | CP46: Wire -Fire 16/4 per 500 ft roll Plenum FPLP | CR46: 121 | CV46: SK PS & Batt | CW46: END
C47: SK PullStation | F47: Uplink 4555 4-Zone GSM Cell 1 Smoke Detect circuit | H47: 555 | I47: ArLenco | L47: SK PullStation | AC47: SK PullStation | AE47: Description | AF47: $ | AG47: $CP | AH47: Notes | AL47: SK PullStation | AW47: =SUBTOTAL(103,Table13[Description]) -> 6 | BD47: SK PullStation | BG47: Power Supplies & Batteries | BN47: =SUBTOTAL(103,Table43[Description]) -> 5 | BU47: SK PullStation | BX47: SK-6860 Annunciator for the 6700/6808 | BZ47: 406 | CM47: SK PullStation | CP47: Wire Nuts | CR47: 10 | CV47: SK PullStation | CW47: END
C48: SK StrobesOnly | F48: zDSC-3G 3070-CF DISCONTINUED | H48: 425 | L48: SK StrobesOnly | AC48: SK StrobesOnly | AL48: SK StrobesOnly | BD48: SK StrobesOnly | BG48: Description | BH48: $ | BI48: $2 | BJ48: Notes | BU48: SK StrobesOnly | CM48: SK StrobesOnly | CV48: SK StrobesOnly | CW48: END
B49: Vigilant | K49: Vigilant | AB49: Vigilant | AK49: Vigilant | BC49: Vigilant | BT49: Vigilant | CL49: Vigilant | CU49: Vigilant | CW49: END
C50: VS D&Smokes | F50: Detect&Smokes | L50: VS D&Smokes | T50: Index | W50: Power Supplies & Batteries | AC50: VS D&Smokes | AL50: VS D&Smokes | AT50: Index | BD50: VS D&Smokes | BL50: Index | BU50: VS D&Smokes | BX50: Panels | CC50: Index | CM50: VS D&Smokes | CV50: VS D&Smokes | CW50: END
C51: VS Hornz | F51: Horns | L51: VS Hornz | W51: Description | X51: $ | Y51: $2 | Z51: Notes | AC51: VS Hornz | AL51: VS Hornz | BD51: VS Hornz | BU51: VS Hornz | BX51: Vigilant | CM51: VS Hornz | CV51: VS Hornz | CW51: END
C52: VS HornStrobes | F52: Horn-Strobes | L52: VS HornStrobes | W52: No EST PS Listing 1 | AC52: VS HornStrobes | AL52: VS HornStrobes | BD52: VS HornStrobes | BU52: VS HornStrobes | BX52: Description | BY52: $ | BZ52: $2 | CA52: Notes | CM52: VS HornStrobes | CV52: VS HornStrobes | CW52: END
C53: VS PS & Batts | F53: PS&Batt | L53: VS PS & Batts | W53: No EST PS Listing 2 | AC53: VS PS & Batts | AL53: VS PS & Batts | AO53: All Ranges must be sorted ALPHABETICALLY on 'Description' | AW53: Horns | BD53: VS PS & Batts | BN53: Pull Stations | BU53: VS PS & Batts | BX53: Annunciator Remote RLCD/RLED or Equivalent | BZ53: 500 | CM53: VS PS & Batts | CV53: VS PS & Batts | CW53: END
C54: VS Pull Stations | F54: PullStation | L54: VS Pull Stations | AC54: VS Pull Stations | AE54: Strobes only | AL54: VS Pull Stations | AW54: Description | AX54: $ | AY54: $2 | AZ54: Notes | BD54: VS Pull Stations | BN54: Description | BO54: $ | BP54: $CP | BQ54: Notes | BU54: VS Pull Stations | BX54: SA-ETH-VS-1/2 Ethernet adapter | BZ54: 300 | CM54: VS Pull Stations | CV54: VS Pull Stations | CW54: END
C55: VS Strobes only | F55: StrobesOnly | L55: VS Strobes only | T55: Index | AC55: VS Strobes only | AE55: Description | AF55: $ | AG55: $CP | AH55: Notes | AL55: VS Strobes only | AT55: Index | AW55: Add SK Horns data | AY55: 21 | BD55: VS Strobes only | BG55: Pull Stations | BL55: Index | BN55: M85001-0279 Manuall Pull Intell GSA-M270, M270P, M278 Key reset | BP55: 45 | BU55: VS Strobes only | BX55: Vigilant Annunciator Basic Internal | BZ55: 285 | CC55: Index | CM55: VS Strobes only | CV55: VS Strobes only | CW55: END
C56: VS zMisc | F56: zMisc | L56: VS zMisc | AC56: VS zMisc | AL56: VS zMisc | AW56: Made a SK HORNZ table here | AY56: 6 | BD56: VS zMisc | BG56: Description | BH56: $ | BI56: $2 | BJ56: Notes | BN56: zSpare 1 | BP56: 9999 | BU56: VS zMisc | BX56: VS-1 FSS Basic Gray 1 Loop System (xx-zone) w-Adap & Eth NO dialer M85005-0131 | BZ56: =390+N("Panel")+70+N("Adapter Class-A")+300+N("SA-ETHernet") -> 760 | CM56: VS zMisc | CV56: VS zMisc | CW56: END
C57: VS zOther | F57: zOther | L57: VS zOther | AC57: VS zOther | AL57: VS zOther | AW57: =SUBTOTAL(103,Table15[Description]) -> 2 | BD57: VS zOther | BU57: VS zOther | BX57: VS-1 FSS Basic Red 1 Loop System (xx-zone) w-Adap & Eth NO dialer M85005-0131 | BZ57: =390+N("Panel")+70+N("Adapter Class-A")+300+N("SA-ETHernet") -> 760 | CM57: VS zOther | CV57: VS zOther | CW57: END
W58: Pull Stations | BX58: VS-1 FSS Full Gray 1 Loop System (xx-zone) w-Adap & Eth & Dialer M85005-0131 | BZ58: =390+N("Panel")+140+N("Dialer")+70+N("Adapter Class-A")+300+N("SA-ETHernet") -> 900 | CW58: END
B59: Potter Switches | W59: Description | X59: $ | Y59: $2 | Z59: Notes | BX59: VS-1 FSS Full Red 1 Loop System (xx-zone) w-Adap & Eth & Dialer M85005-0131 | BZ59: =390+N("Panel")+140+N("Dialer")+70+N("Adapter Class-A")+300+N("SA-ETHernet") -> 900 | CU59: Power supplies & Batts | CW59: END
W60: Edwards ESL interlogic 103-01 Manual Non-Addressable Pull Station | Y60: 60 | AT60: Index | AW60: Horn-Strobes | BL60: Index | BX60: VS-1 OEM Gray 1 Loop System (xx-zone) M85005-0131 | BZ60: =390+N("Panel BARE") -> 390 | CC60: Index | CU60: Pull stn | CW60: END
B61: Power supplies & Batts | K61: Power supplies & Batts | W61: Edwards EST GE-270 Pull Station | Y61: 40 | AB61: Power supplies & Batts | AK61: Power supplies & Batts | AW61: Description | AX61: $ | AY61: $2 | AZ61: Notes | BC61: Power supplies & Batts | BG61: Strobes only | BN61: Strobes only | BT61: Power supplies & Batts | BX61: VS-1 OEM Gray 1 Loop System (xx-zone) M85005-0131 ED-VS1GD ADI w/Dialer | BZ61: =390+N("SA-DACT dialer")+140 -> 530 | CL61: Power supplies & Batts | CW61: END
B62: Pull stn | K62: Pull stn | T62: Index | W62: Edwards EST GE-MPSR1-S45W Pull Station | Y62: 200 | AB62: Pull stn | AE62: zMisc | AK62: Pull stn | AW62: Add SK Horn STROBE data | AY62: 22 | BC62: Pull stn | BG62: Description | BH62: $ | BI62: $2 | BJ62: Notes | BN62: Description | BO62: $ | BP62: $CP | BQ62: Notes | BT62: Pull stn | BX62: VS-1 OEM Red 1 Loop System (xx-zone) M85005-0131 | BZ62: =390+N("Panel BARE") -> 390 | CL62: Pull stn | CU62: Parts/Assy | CW62: END
W63: zSpare-01 | Y63: 2 | AE63: Description | AF63: $ | AG63: $CP | AH63: Notes | AW63: Made a SK HornStrobe table here | AY63: 7 | BG63: SystemSensor P2W Strobe only White or P2R Red | BI63: 31 | BN63: M85001-0557 Strobe Field Configurable Genesis | BP63: 999 | BX63: VS-2 FSS Basic Gray or Red 10-zone NO-Adap & NO-Eth & NO dialer i.e BARE | BZ63: =496+4+N("Panel") -> 500 | CA63: MRSP1048 | CW63: END
B64: Parts/Assy | K64: Parts/Assy | W64: =SUBTOTAL(103,Table36[Description]) -> 4 | AB64: Parts/Assy | AK64: Parts/Assy | AO64: zOther HW | BC64: Parts/Assy | BG64: SystemSensor SCR 2-wire Ceiling Strobe STD Red | BI64: 41 | BN64: zSpare 1 | BP64: 999 | BT64: Parts/Assy | BX64: VS-2 FSS Basic Gray or Red 10-zone w-Adap & Eth NO dialer | BZ64: =496+4+N("Panel")+78+N("Adapter Class-A")+300+N("SA-ETHernet") -> 878 | CL64: Parts/Assy | CU64: Index | CW64: END
AO65: Description | AP65: $ | AQ65: $2 | AR65: Notes | BG65: SystemSensor SCRL 2-wire Ceiling Strobe STD Red | BI65: 53 | BN65: zSpare 2 | BP65: 999 | BX65: VS-2 FSS Full Gray or Red 10-zone w-Adap & Eth & Dialer | BZ65: =496+4+N("Panel")+N("Dialer:")+140+N("Adapter Class-A:")+78+N("SA-ETHernet:")+300 -> 1018 | CW65: END
B66: Index | K66: Index | T66: Index | AB66: Index | AK66: Index | AO66: Add HW OTHER data | AQ66: 23 | AT66: Index | BC66: Index | BG66: SystemSensor SR Strobe STD Candela Red | BI66: 31 | BL66: Index | BN66: =SUBTOTAL(103,Table50[Description]) -> 3 | BQ66: =SUBTOTAL(103,Table50[Notes]) -> 0 | BT66: Index | BX66: VS-2 OEM Basic Gray or Red 10-zone NO dialer | BZ66: =540+N("Panel BARE") -> 540 | CC66: Index | CL66: Index | CW66: END
AO67: Made a HW OTHER table here | AQ67: 8 | BG67: SystemSensor SRHK Strobe, High cd, Red, Outdoor (includes plastic weatherproof back box) | BI67: 0 | BX67: VS-2 OEM Full Gray or Red 10-zone w-Dialer | BZ67: =574+N("Panel")+N("Dialer") -> 574 | CW67: END
W68: Strobes only | AO68: =SUBTOTAL(103,ListAlm!$AO$66:$AO$67) -> 2 | AW68: Power Supplies & Batteries | BG68: SystemSensor SRK Strobe, Standard cd, Red, Outdoor (includes plastic weatherproof back box) | BI68: 0 | BX68: VS-4 Bare | BZ68: 500 | CW68: END
W69: Description | X69: $ | Y69: $2 | Z69: Notes | AW69: Description | AX69: $ | AY69: $2 | AZ69: Notes | BG69: SystemSensor SW Strobe, High cd, White, Outdoor (includes plastic weatherproof back box) | BI69: 0 | BX69: VS-4 FSS Full Gray/Wh 1 Loop System (xx-zone) w-Adap & Eth & Dialer | BZ69: =630+N("Panel")+140+N("Dialer")+70+N("Adapter Class-A")+300+N("SA-ETHernet") -> 1140 | CW69: END
W70: ED MG1F-VM Strobe Multi CD White w/Fire label | Y70: 22 | AE70: zOther | AW70: SK 5495 6A 6 Amp NAC Power Supply W/ Sync | AY70: 332 | BG70: SystemSensor SWK Strobe, Standard cd, White, Outdoor (includes plastic weatherproof back box) | BI70: 0 | BN70: zMisc | BX70: zSpare 1 | BZ70: 200 | CW70: END
G71: SK | H71: VS | W71: Strobe LED Clear EG1 -VWF Strobe only White w/Fire label | Y71: 29 | AE71: Description | AF71: $ | AG71: $CP | AH71: Notes | AW71: SK 5496 6A Intelligent 6 Amp Power Supply | AY71: 345 | BG71: =SUBTOTAL(103,Table41[Description]) -> 8 | BN71: Description | BO71: $ | BP71: $2 | BQ71: Notes | BX71: zSpare 2 | BZ71: 300 | CW71: END
F72: Class A = Redundant Path = $$$ | G72: 525 | H72: 390 | I72: Panel | W72: zSpare-01 | Y72: 5 | AE72: SD500-AIM Addressable input module single input | AG72: 54 | AW72: SK 5499 9A 9 Amp NAC Power Supply W/ Sync | AY72: 356 | BN72: Input Modules GSA-CT1 M85001-0241 ED-GSA CT1 | BP72: 30 | BX72: zSpare 3 | BZ72: 400 | CW72: END
F73: Class B = Terminating Resis | G73: included | H73: 70 | I73: Adapt | AE73: Make an HK OTHER table here | AG73: 999 | AW73: SK 5895 XL Inteliknight Power Supply | AY73: 504 | BN73: Input Modules GSA-CT1HT M85001-0241 | BP73: 37 | CW73: END
F74: usb built in SK | G74: included | H74: 300 | I74: Ethernet | AE74: =SUBTOTAL(103,Table56[Description]) -> 2 | AH74: =SUBTOTAL(103,Table56[Notes]) -> 0 | AW74: =SUBTOTAL(103,Table22[Description]) -> 4 | BN74: Input Modules GSA-CT2 M85001-0241 | BP74: 67 | CU74: Index | CW74: END
BN75: Input Modules GSA-UM | BP75: 80 | CW75: END
B76: Index | G76: =SUM(G71:G75) -> 525 | H76: =SUM(H71:H75) -> 760 | K76: Index | T76: Index | AB76: Index | AK76: Index | AT76: Index | BC76: Index | BL76: Index | BN76: M85001-0543 GSA-CC1S, MCC1S Module Sync Output (Ring Tone) | BP76: 55 | BT76: Index | BX76: Note: prefix FSS means a BUILD from BARE. A complete package | CC76: Index | CL76: Index | CW76: END
BN77: SA-ETH-VS-1/2 Ethernet adapter | BP77: 300 | CW77: END
W78: zMisc | BG78: zMisc | BN78: VS GSA-WTM Waterflow/Tamper Module | BP78: 63 | CW78: END
W79: Description | X79: $ | Y79: $2 | Z79: Notes | BG79: Description | BH79: $ | BI79: $2 | BJ79: Notes | BN79: =SUBTOTAL(103,Table44[Description]) -> 7 | CW79: END
W80: Spare 1 | Y80: 20 | AW80: Pull Stations | BG80: SystemSensor BK-DSTS Sampling Tube 5' with hole | BH80: 10 | BI80: 10 | CW80: END
W81: Spare 2 | Y81: 20 | AW81: Description | AX81: $ | AY81: $2 | AZ81: Notes | BG81: SystemSensor BK-RTS151KEY Remote Test Station w/key | BI81: 50 | BX81: All Ranges must be sorted ALPHABETICALLY on 'Description' | CW81: END
AW82: SK-PSDA Dual Action Pull Stn Conventional | AY82: 24 | BG82: SystemSensor SA-WBBW or R Metal Weatherproof Backbox | BI82: 1 | CW82: END
AW83: SK-Pull-Dual Action Addressable | AY83: 70 | BG83: =SUBTOTAL(103,Table42[Description]) -> 3 | CW83: END
AW84: SK-Pull-Single Action Addressable | AY84: 70 | BN84: zOther | CU84: Index | CW84: END
AW85: zSpare 1 | AY85: 10 | BN85: Description | BO85: $ | BP85: $2 | BQ85: Notes | CW85: END
B86: Index | K86: Index | T86: Index | W86: zOther | AB86: Index | AK86: Index | AT86: Index | AW86: zSpare 2 | AY86: 20 | BC86: Index | BG86: zOther | BL86: Index | BN86: Add VS zOther data | BP86: 999 | BT86: Index | CC86: Index | CL86: Index | CW86: END
W87: Description | X87: $ | Y87: $2 | Z87: Notes | AW87: =SUBTOTAL(103,ListAlm!$AW$82:$AW$86) -> 5 | BG87: Description | BH87: $ | BI87: $2 | BJ87: Notes | BN87: Made a VS zOther table here | BP87: 999 | CW87: END
I88: Link | BN88: zSpare 1 | BP88: 999 | CW88: END
I89: Link | BN89: zSpare 2 | BP89: 999 | CW89: END
I90: Link | BN90: =SUBTOTAL(103,Table49[Description]) -> 4 | CW90: END
I91: Link | CW91: END
I92: Link | AW92: Strobes only | CW92: END
I93: Link | AW93: Description | AX93: $ | AY93: $2 | AZ93: Notes | CW93: END
AW94: Add STRobe Only data | AY94: 2222 | CU94: Index | CW94: END
I95: Link | AW95: Made a STrobe Only table here | AY95: 777 | CW95: END
B96: Index | K96: Index | T96: Index | AB96: Index | AK96: Index | AT96: Index | AW96: =SUBTOTAL(103,Table23[Description]) -> 2 | BC96: Index | BL96: Index | BT96: Index | CC96: Index | CL96: Index | CW96: END
I97: Link | CW97: END
CW98: END
CW99: END
AW100: zOther SK | CW100: END
AW101: Description | AX101: $ | AY101: $2 | AZ101: Notes | CW101: END
AW102: Add SK OTHER data | AY102: 23 | CW102: END
AW103: Made a SK OTHER table here | AY103: 8 | CW103: END
AW104: =SUBTOTAL(103,Table14[Description]) -> 2 | CU104: Index | CW104: END
CC105: Index | CW105: END
B106: Index | K106: Index | T106: Index | AB106: Index | AK106: Index | AT106: Index | BC106: Index | BL106: Index | BT106: Index | CL106: Index | CW106: END
CW107: END
AW108: zMisc | CW108: END
AW109: Description | AX109: $ | AY109: $ | AZ109: Notes | CW109: END
AW110: Add SK zMisc data | AX110: Column1 | AY110: 51.00 | AZ110: Column2 | CW110: END
AW111: Make a zMisc SK table here | AY111: 55 | CW111: END
AW112: =SUBTOTAL(103,Table45[Add SK zMisc data]) -> 1 | CW112: END
CW113: END
CU114: Index | CW114: END
CC115: Index | CW115: END
B116: Index | K116: Index | T116: Index | AB116: Index | AK116: Index | AT116: Index | BC116: Index | BL116: Index | BT116: Index | CL116: Index | CW116: END
CW117: END
CW118: END
CW119: END
CW120: END
CW121: END
A122: END | B122: END | C122: END | D122: END | E122: END | J122: END | K122: END | L122: END | M122: END | N122: END | O122: END | P122: END | Q122: END | R122: END | S122: END | T122: END | U122: END | V122: END | W122: END | X122: END | Y122: END | Z122: END | AA122: END | AB122: END | AC122: END | AD122: END | AE122: END | AF122: END | AG122: END | AH122: END | AI122: END | AJ122: END | AK122: END | AL122: END | AM122: END | AN122: END | AO122: END | AP122: END | AQ122: END | AR122: END | AS122: END | AT122: END | AU122: END | AV122: END | AW122: END | AX122: END | AY122: END | AZ122: END | BA122: END | BB122: END | BC122: END | BD122: END | BE122: END | BF122: END | BK122: END | BL122: END | BM122: END | BN122: END | BO122: END | BP122: END | BQ122: END | BR122: END | BS122: END | BT122: END | BU122: END | BV122: END | BW122: END | BX122: END | BY122: END | BZ122: END | CA122: END | CB122: END | CC122: END | CD122: END | CE122: END | CJ122: END | CK122: END | CL122: END | CM122: END | CN122: END | CO122: END | CP122: END | CQ122: END | CR122: END | CS122: END | CT122: END | CU122: END | CV122: END | CW122: END
BG123: END | BH123: END | BI123: END | BJ123: END
CF124: END | CG124: END | CH124: END | CI124: END
F126: END | G126: END | H126: END | I126: END

Sheet ListWet
B1: Ver 2021-Mar-11 14:00 | E1: SPRINKLER parts | T1: PTD = Painted | BB1: =+T1 -> PTD = Painted | BL1: Val*(1+x%) | DF1: END
D2: All Ranges must be sorted ALPHABETICALLY on 'Description' | AM2: Change head format to PN SSU/SSP QR/SR 135/155/200 K5.6 brass | AP2: RASCO Pricing | DF2: END
B3: INDEX | F3: All Ranges must be sorted ALPHABETICALLY on 'Description' | J3: Index | L3: All Ranges must be sorted ALPHABETICALLY on 'Description' | R3: INDEX | AB3: INDEX | AD3: All Ranges must be sorted ALPHABETICALLY on 'Description' | AF3: Increase date | AG3: CP increase | AJ3: INDEX | AM3: PN SIN -Spray-Response-Temp K-factor-Material-Desc-Color- Conc-Recessed | AR3: INDEX | AU3: All Ranges must be sorted ALPHABETICALLY on 'Description' | AZ3: INDEX | BF3: INDEX | BJ3: All Ranges must be sorted ALPHABETICALLY on 'Description' | BQ3: INDEX | BT3: All Ranges must be sorted ALPHABETICALLY on 'Description' | BZ3: INDEX | CC3: All Ranges must be sorted ALPHABETICALLY on 'Description' | CK3: INDEX | CN3: All Ranges must be sorted ALPHABETICALLY on 'Description' | CR3: INDEX | CU3: http://www.amesfirewater.com/ | DE3: INDEX | DF3: END
F4: COMMENTS do not move with its cell | N4: MrkUp | O4: Tax | AF4: 2018-05-01 | AG4: 0.36 | AU4: Updated Head Wrench $ 2018-10-23 | BT4: Index | CN4: OUT-OF-SERVICE 2016-10-16 | DF4: END
B5: Anti Freeze | F5: Anti-Freeze One Gallon of Water weighs 8.34lb | L5: Dry Riser Compressor & Components | N5: =4%+3% -> 0.07 | O5: 0.073 | R5: Anti Freeze | T5: Els/90's Tees et al | U5: $ | V5: $ | W5: $ | Y5: $ | AB5: Anti Freeze | AD5: Hangers | AJ5: Anti Freeze | AM5: Heads | AR5: Anti Freeze | AU5: Wrenches | AZ5: Anti Freeze | BB5: Mech-Tee | BF5: Anti Freeze | BI5: Pipe | BJ5: =(25+12)% -> 0.37 | BK5: =(25+12)% -> 0.37 | BL5: 0.37 | BM5: =(25+12)% -> 0.37 | BN5: =(25+12)% -> 0.37 | BO5: =(25+12)% -> 0.37 | BQ5: Anti Freeze | BT5: Valves/Drains/Gauges FDC | BZ5: Anti Freeze | CC5: Weldlets Couplings & Nipples | CE5: =(25+10)% -> 0.35 | CF5: =(25+12)% -> 0.37 | CG5: =(25+12)% -> 0.37 | CH5: =(25+12)% -> 0.37 | CI5: =(25+12)% -> 0.37 | CK5: Anti Freeze | CN5: Misc Out-Of-Service | CR5: Anti Freeze | CU5: BFP's & IBR | CV5: 0.1 | CW5: 0.1 | CX5: 0.1 | CY5: 0.1 | CZ5: 0.1 | DA5: 0.1 | DB5: 0.1 | DC5: 0.1 | DE5: Anti Freeze | DF5: END
B6: AWP & Rentals | F6: ChemName | G6: Freight | H6: Price | L6: Description | M6: PriceStart | N6: Price | O6: Stax | P6: Notes | R6: AWP & Rentals | U6: Black-S10 | V6: Black-S40 | W6: CPVC | X6: DynaFlow-S10 | Y6: Galvanised | Z6: Brass | AB6: AWP & Rentals | AD6: Description | AE6: Column1 | AF6: $ | AG6: increase | AH6: Notes | AJ6: AWP & Rentals | AM6: Description | AN6: Column1 | AO6: $ | AP6: Notes | AR6: AWP & Rentals | AU6: Description | AV6: Column1 | AW6: $ | AX6: Notes | AZ6: AWP & Rentals | BB6: Description | BC6: Column1 | BD6: $ | BF6: AWP & Rentals | BI6: inches | BJ6: $ | BK6: $ | BL6: $ | BM6: $ | BN6: $ | BO6: $ | BQ6: AWP & Rentals | BT6: Description | BU6: Type | BV6: $ | BW6: Blank | BX6: Notes | BZ6: AWP & Rentals | CC6: Description | CD6: Black S10 | CE6: Black-S40 | CF6: CPVC | CG6: DynaFlow-S10 | CH6: DynaThread | CI6: Galvanised | CK6: AWP & Rentals | CN6: Description | CO6: $ | CP6: $2 | CR6: AWP & Rentals | CU6: Description | CV6: 1.5" | CW6: 2.0" | CX6: 2.5" | CY6: 3.0" | CZ6: 4.0" | DA6: 6.0" | DB6: 8.0" | DC6: Notes | DE6: AWP & Rentals | DF6: END
F7: Glycerine 48% per gal | G7: 10 | H7: =8+(8*7%) -> 8.56 | L7: GAST 6LCF-10-M616NEX Riser-Mounted plus Mounting Kit | M7: 1100 | N7: =(+M7*(1+$N$5)) -> 1177 | O7: =+Table6[[#This Row],[Price]]*$O$5 -> 85.921 | T7: Description | U7: Black-S10 | V7: Black-S40 | W7: CPVC | X7: DynaFlow-S10 | Y7: Galvanised | Z7: Brass | AD7: 3" Ring 3/8 button | AF7: =0.78 -> 0.78 | AG7: =+Table09[[#This Row],[$]]+(Table09[[#This Row],[$]]*$AG$4) -> 1.0608 | AM7: 00 Manufacturer head painting -per color SETUP Fee | AO7: 450 | AU7: Post Indicator Wrench (adjustable) | AV7: 66.46 | AW7: 67 | BB7: Gasket 3.0 x 2 PTD Coupling Set | BD7: 41.454 | BI7: Diam | BJ7: Black-S10 | BK7: Black-S40 | BL7: CPVC | BM7: DynaFlow-S10 | BN7: DynaThread | BO7: Galvanised | BT7: Adapter addition 4X2-1/2X2-1/2 STRT SGL CLPR | BV7: 86 | CC7: ANV Nipple 1-1/2x2 Blk Stl | CE7: 6 | CU7: Ames In-Bldg Riser SS | CZ7: 878 | DA7: 1150 | DB7: 1520 | DF7: END
B8: BFP & IBR's | F8: Glycerine Ferguson 48% per 55gal bbl | G8: 25 | H8: =461+(462*7%) -> 493.34 | L8: GAST RISER Mounted plus Mounting Kit | M8: =895+157+N("mount kit")+25+N("bolts") -> 1077 | N8: 1152.39 | O8: =+Table6[[#This Row],[Price]]*$O$5 -> 84.12447 | P8: Info Page | R8: BFP & IBR's | T8: 45 degree 0.75 inch | W8: 1.2 | AB8: BFP & IBR's | AD8: Argco Flex Drop 48" | AF8: 22.15 | AG8: 22.15 | AJ8: BFP & IBR's | AM8: 00 Manufacturer head painting -per head Fee | AO8: 9 | AR8: BFP & IBR's | AU8: RASCO FC (Concealed) | AW8: 125 | AZ8: BFP & IBR's | BB8: Gasket 3.0 x 2-1/2 Coupling Set | BD8: 36.015 | BF8: BFP & IBR's | BI8: 0.5 | BJ8: =2+(2*$BJ$5) -> 2.74 | BK8: =1.75*(1+$BK$5) -> 2.3975 | BL8: =0.5*(1+$BL$5) -> 0.685 | BM8: =2+(2*$BM$5) -> 2.74 | BN8: 2 | BO8: =3+(3*$BO$5) -> 4.11 | BQ8: BFP & IBR's | BT8: Adapter Swivel 2-1/2 FNST X 3 FNPT RB | BV8: 74 | BZ8: BFP & IBR's | CC8: ANV Nipple 1-1/4x3 Blk Stl | CE8: =3.9+(3.9*$CE$5) -> 5.265 | CK8: BFP & IBR's | CR8: BFP & IBR's | CU8: BFP Ames 2000B Dbl/Chk BFP w/ Ball v/v | CV8: 368 | CW8: 401 | DE8: BFP & IBR's | DF8: END
F9: Glycerine FireFighter GL-48% per 55gal bbl | G9: 425 | H9: =((750*4)+1600+N("freight per pallet of 4"))/4 -> 1150 | L9: GAST Tankless 5LCA-46S-M550GX with PADS & Flex-Line 0.75HP | M9: 1000 | N9: 1070 | O9: =+Table6[[#This Row],[Price]]*$O$5 -> 78.11 | T9: 45 degree 1.00 inch | V9: 2.89 | W9: 1.25 | Y9: 2.9 | AD9: Clamp Beam 1/2" | AF9: 2.18 | AG9: =+Table09[[#This Row],[$]]+(Table09[[#This Row],[$]]*$AG$4) -> 2.9648 | AM9: 00 Paint Cap Cover Plastic prevent painted head each | AO9: 1.25 | AU9: RASCO G6 Head | AW9: 165 | BB9: Gasket 4.0 x 3 Coupling for the ELS | BD9: 55.125 | BI9: 0.75 | BJ9: =2+(2*$BJ$5) -> 2.74 | BK9: =2*(1+$BK$5) -> 2.74 | BL9: =0.55*(1+$BL$5) -> 0.7535 | BM9: =2+(2*$BM$5) -> 2.74 | BN9: 2.25 | BO9: =4+(4*$BO$5) -> 5.48 | BT9: Ball Drip Valve 0.5" | BV9: 18 | CC9: Anvil Gruvlok 7107 Plain End Sock-It 1.00" | CE9: =26+(26*$CE$5) -> 35.1 | CU9: BFP Ames 4000B RP BFP w/Ball v/v | CV9: 540 | DF9: END
B10: Compressor stuff | F10: Glycerine Thatcher per 55gal bbl 552 lbs | G10: 100 | H10: 565 | L10: GAST Tankless 6LCF-46S-M616NEX with PADS & Flex-Line 1.0HP | M10: =983+15+25 -> 1023 | N10: 1094.61 | O10: =+Table6[[#This Row],[Price]]*$O$5 -> 79.90653 | R10: Compressor stuff | T10: 45 degree 1.25 inch | W10: 1.85 | AB10: Compressor stuff | AD10: Clamp Beam 3/8" | AF10: 1 | AG10: =+Table09[[#This Row],[$]]+(Table09[[#This Row],[$]]*$AG$4) -> 1.36 | AJ10: Compressor stuff | AM10: Dry Pendant One Foot Length = $150 | AO10: 150 | AR10: Compressor stuff | AU10: RASCO RC1 Socket Recessed | AW10: 148 | AZ10: Compressor stuff | BB10: Gasket spare Coupling Set | BD10: 66.015 | BF10: Compressor stuff | BI10: 1 | BJ10: =1.1+(1.1*$BJ$5) -> 1.507 | BK10: =1.62249+(1.62249*$BK$5) -> 2.2228113 | BL10: =1*(1+$BL$5) -> 1.37 | BM10: =1.1+(1.1*$BM$5) -> 1.507 | BN10: 1.5 | BO10: =4.2+(4.2*$BO$5) -> 5.754 | BQ10: Compressor stuff | BT10: Ball Valve 1.00" domestic | BV10: 39.31 | BZ10: Compressor stuff | CC10: Anvil Gruvlok 7107 Plain End Sock-It 1.25" | CE10: =26+(26*$CE$5) -> 35.1 | CK10: Compressor stuff | CR10: Compressor stuff | CU10: BFP Ames C200 Backflow Assy w/ Butterfly v/v | CV10: wrong unit | CW10: =1275 -> 1275 | CX10: 1550 | CY10: 1690 | CZ10: 1912 | DA10: 3133 | DB10: 5610 | DE10: Compressor stuff | DF10: END
F11: Propylene Glycol 100% per gal | G11: 10 | H11: 25 | L11: General Air AD3400 Manual Desiccant-Filled Air Dryer $310 +$85 for Dessicant | M11: 395 | N11: 422.65 | O11: =+Table6[[#This Row],[Price]]*$O$5 -> 30.85345 | P11: Manual | T11: 45 degree 1.50 inch | W11: 2.48 | AD11: Clamp Beam adapter Erico | AF11: 40.5 | AG11: =+Table09[[#This Row],[$]]+(Table09[[#This Row],[$]]*$AG$4) -> 55.08 | AM11: Escutcheon 0.5" 2PC Recessed CP | AO11: 1.25 | AU11: Tyc RF2 CONC | AW11: 60 | BB11: Mech Tee PTD 6 x 1.5 | BD11: 36 | BI11: 1.25 | BJ11: =1.75+(1.75*$BJ$5) -> 2.3975 | BK11: =2.2+(2.2*$BK$5) -> 3.014 | BL11: =1.25*(1+$BL$5) -> 1.7125 | BM11: =1.75+(1.75*$BM$5) -> 2.3975 | BN11: 1.75 | BO11: =4.25+(4.25*$BO$5) -> 5.8225 | BT11: Ball Valve Gear operated 1" to 2" units | BV11: 290 | CC11: Anvil Gruvlok 7107 Plain End Sock-It 1.50" | CE11: =32+(32*$CE$5) -> 43.2 | CU11: BFP Ames C200 Backflow Assy w/ OS&Y v/v | DB11: 3927 | DF11: END
B12: Elz Teez | F12: Propylene Glycol 48% per gal | G12: 10 | H12: 19 | L12: General Air GLT1220200ACT Floor mounted with Tank, AMD & Pads 2.0HP | M12: =1500+N("Compressor")+310+N("AMD")+58+N("I added the price for four pads")+25+N("mounting bolts") -> 1893 | N12: 2025.51 | O12: =+Table6[[#This Row],[Price]]*$O$5 -> 147.86223 | R12: Elz Teez | T12: 45 degree 2.00 inch | W12: 3.25 | AB12: Elz Teez | AD12: Clamp Beam Assy A | AF12: 5 | AG12: =+Table09[[#This Row],[$]]+(Table09[[#This Row],[$]]*$AG$4) -> 6.8 | AJ12: Elz Teez | AM12: Escutcheon for Viking VK685 head Direct Order + Freight | AO12: 10 | AR12: Elz Teez | AU12: Tyc W-Type 1 EC25 | AW12: 39 | AZ12: Elz Teez | BB12: Mech Tee VIC 920 FIP 3x2 | BD12: 33 | BF12: Elz Teez | BI12: 1.5 | BJ12: =1.85+(1.85*$BJ$5) -> 2.5345 | BK12: =2.65+(2.65*$BK$5) -> 3.6305 | BL12: =1.75+(1.75*$BL$5) -> 2.3975 | BM12: =1.85+(1.85*$BM$5) -> 2.5345 | BN12: 1.85 | BO12: =4.5+(4.5*$BO$5) -> 6.165 | BQ12: Elz Teez | BT12: Butterfly or Gate Valve 6" Flange x Flange w/HandWheel | BU12: 6" Wet | BV12: 650 | BZ12: Elz Teez | CC12: Anvil Reducing Coupling RC-2 1x1/2" | CE12: =1.7+(1.7*$CE$5) -> 2.295 | CK12: Elz Teez | CR12: Elz Teez | CU12: BFP Ames C300 Backflow Assy w/ Butterfly v/v | CZ12: 1950 | DE12: Elz Teez | DF12: END
F13: Tyco Glycerine 30 gal (Ferguson) | H13: =872+N("DocFee")+25+N("NoteFee")+125+N("PumpFee")+(1*55) -> 1077 | L13: General Air GLT900150ACT Floor mounted with Tank, AMD & Pads 1.5HP | M13: =1500+N("Compressor")+310+N("AMD")+58+N("I added the price for four pads")+25+N("mounting bolts") -> 1893 | N13: 2025.51 | O13: =+Table6[[#This Row],[Price]]*$O$5 -> 147.86223 | T13: 45 degree 2.50 inch | W13: 6 | AD13: Clamp Beam Assy A B C & M | AF13: 4.8 | AG13: =+Table09[[#This Row],[$]]+(Table09[[#This Row],[$]]*$AG$4) -> 6.528 | AM13: Flexhead 2000 Series 1/2" X 24 | AO13: 35 | AP13: Hose is AH2 Bracket is AB2 see Hangars | AU13: Tyc W-Type 12 TY-FRL REC | AW13: 21.9 | BB13: Mech Tee VIC 920 FIP 3x2 | BD13: 33 | BI13: 2 | BJ13: =2.5+(2.5*$BJ$5) -> 3.425 | BK13: =4.9+(4.9*$BK$5) -> 6.713 | BL13: =2.7+(2.7*$BL$5) -> 3.699 | BM13: =2.51+(2.51*$BM$5) -> 3.4387 | BN13: 2.5 | BO13: =5+(5*$BO$5) -> 6.85 | BT13: Butterfly Valve Grooved 2" 728 | BV13: 302 | CC13: Coup Grv E-Gskt 6 x 4 | CE13: =105+(105*$CE$5) -> 141.75 | CU13: BFP Ames LF2000 BFG | CV13: =+(290*(1+$CV$5)) -> 319 | CX13: =1210*(1+$CX$5) -> 1331 | CY13: =1500*(1+$CY$5) -> 1650 | CZ13: =1900*(1+$CZ$5) -> 2090 | DF13: END
B14: Hangars | L14: General Air KVP4x4 Vibration Isolation Pads. Price per Pkt of 4 | M14: =17*4 -> 68 | N14: 72.76 | O14: =+Table6[[#This Row],[Price]]*$O$5 -> 5.31148 | P14: Info Page | R14: Hangars | T14: 45 degree 3.00 inch | W14: 8.25 | AB14: Hangars | AD14: Clamp Beam Erico 300 or 310 | AF14: 2.25 | AG14: =+Table09[[#This Row],[$]]+(Table09[[#This Row],[$]]*$AG$4) -> 3.06 | AJ14: Hangars | AM14: Flexhead 2000 Series 1/2" X 36 | AO14: 41 | AR14: Hangars | AU14: Tyc W-Type 18 LF2 CONC | AV14: 49.22 | AW14: 60 | AZ14: Hangars | BB14: Mech Tee VIC 920 FIP 4x1 | BD14: 33 | BF14: Hangars | BI14: 2.5 | BJ14: =4+(4*$BJ$5) -> 5.48 | BK14: =4.47708+(4.47708*$BK$5) -> 6.1335996 | BL14: =4.7+(4.7*$BL$5) -> 6.439 | BM14: =4+(4*$BM$5) -> 5.48 | BN14: 4 | BO14: =7+(7*$BO$5) -> 9.59 | BQ14: Hangars | BT14: Butterfly Valve Grooved 3" | BV14: 231 | BZ14: Hangars | CC14: Coupler 4" threaded | CE14: =100+(100*$CE$5) -> 135 | CK14: Hangars | CR14: Hangars | CU14: Deringer D200DC VAL F | CV14: =+(1000*(1+$CV$5)) -> 1100 | CX14: =1295*(1+$CX$5) -> 1424.5 | DE14: Hangars | DF14: END
B15: Heads | F15: Disposal Fee | L15: General Air OL616-100-BCT (230v) 1HP Tank 3 phse Magnetic Starter+AMD | M15: =2385+300+330 -> 3015 | N15: 3226.05 | O15: =+Table6[[#This Row],[Price]]*$O$5 -> 235.50165 | R15: Heads | T15: 90 EL 0.75" & 0.25 | W15: 0.7 | Z15: 0.25 | AB15: Heads | AD15: Clamp B-Line B3140- 1.50" Std Pipe Clamp | AF15: 2.35 | AG15: =+Table09[[#This Row],[$]]+(Table09[[#This Row],[$]]*$AG$4) -> 3.196 | AJ15: Heads | AM15: Flexhead 2000 Series 1/2" X 72 | AO15: 57 | AR15: Heads | AU15: Tyc W-Type 2 ESFR-1 | AW15: 30 | AZ15: Heads | BB15: Mech Tee VIC 920 FIP 4x2 | BD15: 43 | BF15: Heads | BI15: 3 | BJ15: =3+(3*$BJ$5) -> 4.11 | BK15: =8.75+(8.75*$BK$5) -> 11.9875 | BL15: =7.15+(7.15*$BL$5) -> 9.7955 | BM15: =4+(4*$BM$5) -> 5.48 | BN15: 4 | BO15: =9+(9*$BO$5) -> 12.33 | BQ15: Heads | BT15: Butterfly Valve Grooved 4" | BV15: 242 | BZ15: Heads | CC15: Coupling DI 1.0" | CE15: 5.4 | CK15: Heads | CR15: Heads | CU15: Fireloop Expansion joints | CW15: 630 | CX15: 699 | CY15: 895 | CZ15: 1125 | DA15: 2155 | DE15: Heads | DF15: END
F16: $100 Document Creation Fee and $125 per drum | L16: General Air OLTseries Floor mounted with Tank, AMD & Pads | M16: =2175+N("Compressor")+200+N("AMD")+68+N("4xPads")+25+N("mounting bolts") -> 2468 | N16: 2640.76 | O16: =+Table6[[#This Row],[Price]]*$O$5 -> 192.77548 | P16: Info Page | T16: 90 EL 1.00" IBDI9G | V16: 2.5 | W16: 1.5 | AD16: Clamp Pipe EQ UL FM | AF16: 4.25 | AG16: =+Table09[[#This Row],[$]]+(Table09[[#This Row],[$]]*$AG$4) -> 5.78 | AM16: Flexhead 2000 Series 3/4" X 72 | AO16: 60 | AU16: Tyc W-Type 3 EC/ELO | AW16: 50.3 | BB16: Mech Tee VIC 920 FIP 5x2 | BD16: 42 | BI16: 3.5 | BJ16: =4+(4*$BJ$5) -> 5.48 | BK16: =8+(8*$BK$5) -> 10.96 | BL16: =8+(8*$BL$5) -> 10.96 | BM16: =4.65+(4.65*$BM$5) -> 6.3705 | BN16: 4.65 | BO16: =13+(13*$BO$5) -> 17.81 | BT16: Check Valve 4" NOT PERMITTED | BV16: 0 | CC16: Coupling DI 1.25" | CE16: 8 | CU16: Rasco Ready-Riser 1MPLL | CV16: =+(425*(1+$CV$5)) -> 467.5 | DF16: END
B17: Mech-Tee | F17: $225 Stop Fee per drum, plus 30 cents per gal to pump | L17: General Air QL 25050ACT Floor mounted QUIET with Tank, AMD & Pads | M17: =2876+N("Compressor")+310+N("AMD")+68+N("I added the price for four pads")+25+N("mounting bolts") -> 3279 | N17: 3508.53 | O17: =+Table6[[#This Row],[Price]]*$O$5 -> 256.12269 | P17: Brochure | R17: Mech-Tee | T17: 90 EL 1.00" x 1/2 RED DI | V17: 2.51 | W17: 2 | AB17: Mech-Tee | AD17: Clamp StandPipe Globe Pipe Hanger 4" each: | AF17: 6 | AG17: =+Table09[[#This Row],[$]]+(Table09[[#This Row],[$]]*$AG$4) -> 8.16 | AJ17: Mech-Tee | AM17: FPPI Escutcheon 401 Head Skirt and Cover for a pendant head Chrome F01600 | AO17: =0.75+0.75 -> 1.5 | AP17: 2018-10-22 | AR17: Mech-Tee | AU17: Tyc W-Type 4 EC14/EC11 | AW17: 12.68 | AZ17: Mech-Tee | BB17: Mech Tee VIC 920 Grvd outlet 2 x 1.25 | BD17: 23 | BF17: Mech-Tee | BI17: 4 | BJ17: =6.46+(6.46*$BJ$5) -> 8.8502 | BK17: =11.25+(11.25*$BK$5) -> 15.4125 | BL17: =8.25+(8.25*$BL$5) -> 11.3025 | BM17: =4.65+(4.65*$BM$5) -> 6.3705 | BN17: 4.65 | BO17: =13+(13*$BO$5) -> 17.81 | BQ17: Mech-Tee | BT17: Check Valve Brass 1" | BV17: 22 | BZ17: Mech-Tee | CC17: Coupling DI 1.50" | CE17: =3.25+(3.25*$CE$5) -> 4.3875 | CK17: Mech-Tee | CR17: Mech-Tee | CU17: Repair Kit 800M4 Ck 1.5" - 0.74" Vacuum Breaker | CV17: =+(25*(1+$CV$5)) -> 27.5 | DE17: Mech-Tee | DF17: END
B18: Misc Parts & Access. | F18: $250 Sample Fee and Pump fee $1.05 per gal engine oil | L18: General Air QL500100ACT Floor mounted QUIET with Tank, AMD & Pads | M18: =2876+N("Compressor")+310+N("AMD")+68+N("I added the price for four pads")+25+N("mounting bolts") -> 3279 | N18: 3508.53 | O18: =+Table6[[#This Row],[Price]]*$O$5 -> 256.12269 | P18: Manual | R18: Misc Parts & Access. | T18: 90 EL 1.00" x 3/4 RED DI | V18: 2.25 | AB18: Misc Parts & Access. | AD18: Clamp Strut 1.00" IPS Plated | AF18: 1.75 | AG18: 3 | AJ18: Misc Parts & Access. | AM18: FPPI Escutcheon 401 Head Skirt and Cover for a pendant head White | AO18: =0.75+0.75 -> 1.5 | AP18: 2018-10-22 | AR18: Misc Parts & Access. | AU18: Tyc W-Type 6 1/2 & 3/4 | AW18: 31 | AZ18: Misc Parts & Access. | BB18: Mech Tee VIC 920 Grvd outlet 3 x 2 | BD18: 33 | BF18: Misc Parts & Access. | BI18: 6 | BJ18: =8.5+(8.5*$BJ$5) -> 11.645 | BK18: =20+(20*$BK$5) -> 27.4 | BL18: =15+(15*$BL$5) -> 20.55 | BM18: =8.5+(8.5*$BM$5) -> 11.645 | BN18: 8.5 | BO18: =20+(20*$BO$5) -> 27.4 | BQ18: Misc Parts & Access. | BT18: Check Valve Brass 2" | BV18: 53 | BZ18: Misc Parts & Access. | CC18: Coupling DI 2.00" | CE18: 16.6 | CK18: Misc Parts & Access. | CR18: Misc Parts & Access. | CU18: Repair Kit Watts RK 007 M1T DC Backflow | CV18: =+(125*(1+$CV$5)) -> 137.5 | DE18: Misc Parts & Access. | DF18: END
F19: so: | L19: General Air SWP60304 Pressure Control MinOn-13 MaxOff-18 Dif 6-16psi | M19: 120 | N19: 128.4 | O19: =+Table6[[#This Row],[Price]]*$O$5 -> 9.3732 | P19: GenAir | T19: 90 EL 1.25" | V19: 8.99 | W19: 2 | AD19: Clamp Strut 1.25" IPS Plated | AF19: 2.25 | AG19: 3.75 | AM19: FPPI Head Guard 4.25" Cage | AN19: 0.91 | AO19: 1.25 | AU19: Tyc W-Type 7 SOCKET TYB | AW19: 50 | BB19: Mech Tee VIC 920 Grvd outlet 3.5 x 2 | BD19: 125 | BI19: 8 | BJ19: =10+(10*$BJ$5) -> 13.7 | BK19: =36+(36*$BK$5) -> 49.32 | BL19: =30+(30*$BL$5) -> 41.1 | BT19: Check Valve Brass 4" | BV19: 83 | CC19: Coupling DI 2.50" | CE19: 16.6 | CU19: WAF Style BFV | CV19: 0 | CW19: 0 | CX19: 0 | CY19: 0 | CZ19: 300 | DA19: 0 | DB19: 0 | DF19: END
B20: Pipe | F20: $10 per gallon waste disposal fee (6.25+2(1.10)) | L20: Hubbell-Furnas 69HAU3 Pressure Control MinOn-14 MaxOff-80 Dif 6-16psi | M20: 250 | N20: 267.5 | O20: =+Table6[[#This Row],[Price]]*$O$5 -> 19.5275 | P20: Hubbell | R20: Pipe | T20: 90 EL 1.25" x 1.0" RED DI | V20: 3.3 | AB20: Pipe | AD20: Clamp Strut 1.50" IPS Plated | AF20: 2.5 | AG20: 3.75 | AJ20: Pipe | AM20: FPPI Head Guard one piece, for recessed sprinkler F0261000 | AO20: 1.7 | AR20: Pipe | AU20: Tyc W-Type 8 K17 | AW20: 60.77 | AZ20: Pipe | BB20: Mech Tee VIC 920 Grvd outlet 4 x 2 | BD20: 34 | BF20: Pipe | BQ20: Pipe | BT20: CLA-Val 55L-60 100-300 psi UL half inch for 90A-21 | BV20: 750 | BZ20: Pipe | CC20: Coupling DI 3.00" | CE20: 16.6 | CK20: Pipe | CR20: Pipe | CU20: Watts 007QT BACKFLOW W/BV | CV20: =250*(1+$CV$5) -> 275 | CW20: =250*(1+$CW$5) -> 275 | CX20: =580*(1+$CX$5) -> 638 | CY20: =580*(1+$CY$5) -> 638 | DE20: Pipe | DF20: END
F21: =(250/40)+1.1+1.1 -> 8.45 | L21: TYCO Rapid Response Model RCP-1 P/N 523102601 1.0" | M21: 5950 | N21: 6000 | O21: =+Table6[[#This Row],[Price]]*$O$5 -> 438 | T21: 90 EL 1.25" x 1/2 RED DI | V21: 3.75 | AD21: Clamp Strut 2.00" IPS Plated | AG21: 4.5 | AM21: FPPI Head Guard TWO piece, adjustable base | AO21: 2.75 | AU21: Tyc W-Type 9 FLAT | AW21: 27 | BB21: Mech Tee VIC 920 Grvd outlet 4 x 3 | BD21: 38 | BT21: CLA-Val 55L-60 20-200 psi UL half inch for 90A-21 | BV21: 565 | CC21: Coupling Flex VIC 004 1" | CE21: 6.25 | CU21: WILKINS 350ABG DCA W/VIC BFV G X G | CZ21: =1600*(1+$CZ$5) -> 1760 | DF21: END
B22: Valves Drains FDC | L22: TYCO Rapid Response Model RCP-1 P/N 523102602 1.50" | M22: 7150 | N22: 7200 | O22: =+Table6[[#This Row],[Price]]*$O$5 -> 525.6 | R22: Valves Drains FDC | T22: 90 EL 1.25" x 3/4 RED DI | V22: 4 | AB22: Valves Drains FDC | AD22: Clamp Strut 3.00" IPS Plated | AG22: 4.75 | AJ22: Valves Drains FDC | AM22: Head box 03 | AN22: 5.32 | AO22: 5.5 | AR22: Valves Drains FDC | AU22: Tyc W-Type10 SOCKET TY-L | AW22: 50.3 | AZ22: Valves Drains FDC | BB22: Mech Tee VIC 920 Grvd outlet 6 x 2 | BD22: 43 | BF22: Valves Drains FDC | BQ22: Valves Drains FDC | BT22: CLA-Val 90A-21Grv-x-Grv 4 inch | BV22: 3000 | BW22: 2909 | BZ22: Valves Drains FDC | CC22: Coupling Flex VIC 004 1.5" | CE22: 9 | CK22: Valves Drains FDC | CR22: Valves Drains FDC | DE22: Valves Drains FDC | DF22: END
E23: 4 | F23: Propylene Glycol | G23: 165 | H23: =+E23*G23 -> 660 | L23: VIC Firelock 757 Air Trim | M23: 540 | N23: =(+M23*(1+$N$5)) -> 577.8 | O23: =+Table6[[#This Row],[Price]]*$O$5 -> 42.1794 | P23: Info Page | T23: 90 EL 1.50" | V23: 7.7 | W23: 2.7 | AD23: Clamp TolCo 10012 1.25x1.0 Fast Clamp | AF23: 7.46 | AG23: =+Table09[[#This Row],[$]]+(Table09[[#This Row],[$]]*$AG$4) -> 10.1456 | AM23: Head box 06 head cabinet 14.5 x 2.5 x 5.25" | AN23: 7.99 | AO23: 16 | AU23: Tyc W-Type-18 Head | AW23: =58+2 -> 60 | BB23: Mech Tee VIC 920 Grvd outlet 6 x 3 | BD23: 49 | BT23: CLA-Val 90A-21Grv-x-Grv 4 inch with Epoxy | BV23: =3000+350 -> 3350 | CC23: Coupling Flex VIC 004 2" | CE23: 8.25 | CU23: https://www.watts.com/ | DF23: END
B24: Weldlets & Couplings | L24: zSpare | R24: Weldlets & Couplings | T24: 90 EL 1.50" x .50" RED DI | V24: 4.6 | AB24: Weldlets & Couplings | AD24: Hanger Ring 1.00" | AF24: 0.5 | AG24: =+Table09[[#This Row],[$]]+(Table09[[#This Row],[$]]*$AG$4) -> 0.68 | AJ24: Weldlets & Couplings | AM24: Head box 12 head cabinet 14.5 x 4" x 5.25" | AN24: 9.1 | AO24: 16 | AR24: Weldlets & Couplings | AU24: VIC V27-1 3/4" (Recessed) | AW24: 89 | AZ24: Weldlets & Couplings | BB24: Mech Tee VIC 920 Grvd outlet 6 x 4 | BD24: 54 | BF24: Weldlets & Couplings | BQ24: Weldlets & Couplings | BT24: Drain AFG Test and Drain Model 1000 1.0" | BV24: 160 | BZ24: Weldlets & Couplings | CC24: Coupling Flex VIC 004 2.5" | CE24: 10 | CK24: Weldlets & Couplings | CR24: Weldlets & Couplings | DE24: Weldlets & Couplings | DF24: END
B25: Wrenches | E25: 1 | F25: Doc creation/Manifest Fee each drum | G25: 27.5 | H25: =+E25*G25 -> 27.5 | R25: Wrenches | T25: 90 EL 2.00" | V25: 7.5 | W25: 3.7 | AB25: Wrenches | AD25: Hanger Ring 1.25" | AF25: 0.5 | AG25: =+Table09[[#This Row],[$]]+(Table09[[#This Row],[$]]*$AG$4) -> 0.68 | AJ25: Wrenches | AM25: Head box 24 head cabinet 14.5 x 4" x 8.5" | AO25: 15 | AR25: Wrenches | AU25: VIC V27-2 (semi-R) | AW25: 79 | AZ25: Wrenches | BB25: Mech Tee VIC 920 Grvd outlet 8 x 2.5 | BD25: 74 | BF25: Wrenches | BQ25: Wrenches | BT25: Drain Inspector Test 1011T | BV25: 236 | BZ25: Wrenches | CC25: Coupling Flex VIC 004 3" | CE25: 14 | CK25: Wrenches | CR25: Wrenches | DE25: Wrenches | DF25: END
E26: 4 | F26: Drum collection fee 0-50 miles | G26: 35 | H26: =+E26*G26 -> 140 | T26: 90 EL 2.50" | V26: 9.7 | W26: 7.25 | AD26: Hanger Ring 1.5 x 6 IPS each | AF26: =0.88*25 -> 22 | AG26: =+Table09[[#This Row],[$]]+(Table09[[#This Row],[$]]*$AG$4) -> 29.92 | AM26: Head Extenders Brass 0.5x 1.0 inch long | AO26: 5.5 | AU26: VIC V27-3 1/2" (Open) (Upright) | AW26: =494/6 -> 82.33333333 | BB26: Mech Tee VIC 920 Grvd outlet 8 x 3 | BD26: 78 | BT26: Drain Inspector Test 2511A w/ 0.5 gxg orifice | BV26: 354 | CC26: Coupling Flex VIC 004 4" | CE26: 20 | DF26: END
F27: Sub total | H27: =SUM(H23:H26) -> 827.5 | T27: 90 EL 3.00" | V27: 12 | W27: 10 | AD27: Hanger Ring 1.50" | AF27: 0.75 | AG27: =+Table09[[#This Row],[$]]+(Table09[[#This Row],[$]]*$AG$4) -> 1.02 | AM27: Head Extenders Brass 0.5x 1/2 inch long | AO27: 5.5 | AU27: VIC V2xx socket (Pendant) | AW27: 125 | BB27: Mech Tee VIC 920 Grvd outlet 8 x 4 | BD27: 81 | BT27: Drain Inspector Test w/relief v/v 0.5" orifice | BV27: 180 | CC27: Coupling Sprink CPVC 1-1/4 cpvc | CE27: =0+(0*$CE$5) -> 0 | CF27: =1.69+(1.69*$CF$5) -> 2.3153 | DF27: END
E28: 1 | F28: Energy, Insurance & Security fee | G28: 0.095 | H28: =H27*G28 -> 78.6125 | L28: Cannot INSERT rows move the lower table | T28: 90 EL 4.00" | V28: 16.2 | AD28: Hanger Ring 2.00" | AF28: 0.75 | AG28: =+Table09[[#This Row],[$]]+(Table09[[#This Row],[$]]*$AG$4) -> 1.02 | AM28: Head Extenders Brass 0.5x 2.0 inch long | AO28: 11 | AU28: VIC V33 conc | AW28: 70 | BB28: Mech Tee VIC 922 1.25 x 1 | BD28: 6.64 | BT28: Drain VIC #10 90 Ell 2.0x1 | BV28: 27 | CC28: Flex Coupling Grooved 4" | CE28: 20 | DF28: END
H29: =+H28+H27 -> 906.1125 | T29: Anvil K-9 drain cap Grooved | V29: 40 | AD29: Hanger Ring 2.50" | AF29: 1 | AG29: =+Table09[[#This Row],[$]]+(Table09[[#This Row],[$]]*$AG$4) -> 1.36 | AM29: Head Extenders Brass 0.5x 3/4 inch long | AO29: 4.25 | AU29: VIC V34-1 3/4" (open) | AV29: 54.1 | AW29: 55 | BB29: Mech Tee VIC 922 2.50 x 1.00 | BD29: 8 | BT29: Drain VIC #10 90 Ell 2.5x1 | BV29: 97 | CC29: Grooved Coupling 1.25" | CE29: =18.22+(18.22*$CE$5) -> 24.597 | DF29: END
B30: Index | F30: per barrell | H30: =+H29/4 -> 226.528125 | L30: FHT = Female Hose Thread | R30: Index | T30: Bushing 0.50" x 0.25" LF Brass | Z30: 2.25 | AB30: Index | AD30: Hanger Ring 3.00" | AF30: 1 | AG30: =+Table09[[#This Row],[$]]+(Table09[[#This Row],[$]]*$AG$4) -> 1.36 | AJ30: Index | AM30: R 1015 0.50" SSP SR 165 K5.6 Brass w/escutcheon | AO30: =8+N("Escutcheon 2-pce")+1.5 -> 9.5 | AR30: Index | AU30: VIC V34-2 3/4" (Recessed) | AV30: 79.67 | AW30: 80 | AZ30: Index | BB30: Mech Tee VIC 922 2.50 x 1.25 | BD30: 24.192 | BF30: Index | BQ30: Index | BT30: Drain VIC #10 90 Ell 3.0x1 | BV30: 124 | BZ30: Index | CC30: Grooved Coupling 1.50" | CE30: =18.68+(18.68*$CE$5) -> 25.218 | CK30: Index | CR30: Index | DE30: Index | DF30: END
L31: FIP = Female Iron Pipe=FPT | T31: Bushing 1.00" x 0.50" | V31: 2.5 | AD31: Hanger Ring 4.00" | AF31: 1.07 | AG31: =+Table09[[#This Row],[$]]+(Table09[[#This Row],[$]]*$AG$4) -> 1.4552 | AM31: RA F-1FR56 155 P1W 0.5" NPT Brass White Pendent Recessed head only | AO31: 7.5 | AU31: VIC V36 (Recessed) (Concealed) Dry Head | AV31: 55 | AW31: 55 | BB31: Mech Tee VIC 922 2.50 x 1.5 | BD31: 24.192 | BT31: Drain VIC #10 90 Ell 4.0x1 | BV31: 125 | CC31: Grooved Coupling 3" | CE31: =27.99+(27.99*$CE$5) -> 37.7865 | DF31: END
L32: MHT = Male Hose Thread | T32: Bushing 1.00" x 0.50" Blk Hex | V32: 3.5 | AD32: Hanger Ring 6.00" | AF32: 2.04 | AG32: =+Table09[[#This Row],[$]]+(Table09[[#This Row],[$]]*$AG$4) -> 2.7744 | AM32: RA F-1FR56 155 P1W Brass White Pendent Recessed w/escut & collar | AO32: 17 | AU32: VIC V38-4 1/2" (Socket) (Concealed) | AV32: 79.67 | AW32: 80 | BB32: Mech Tee VIC 922 2.50 x 2 | BD32: 26.322 | BT32: Drum drip galv 1" including sign @ $1.00 | BV32: 160 | CC32: Grooved Coupling 3x2.50" PTD | CE32: =45+(42*$CE$5) -> 59.7 | DF32: END
F33: Code of Federal Regulations | L33: NPT=National Pipe thread | T33: Bushing 1.00" x 1.50" Blk Hex | V33: 3.5 | AD33: Hanger Ring Afcon 303 Trapeze | AF33: 3.18 | AG33: =+Table09[[#This Row],[$]]+(Table09[[#This Row],[$]]*$AG$4) -> 4.3248 | AM33: RA F-1SR56 155 Brass Pendent w/escut | AO33: =5+8.66 -> 13.66 | AU33: zSpare 01 | AW33: 999 | BB33: Mech Tee VIC 922 3.00 x 1 | BD33: 19.872 | BT33: FDC Caps Brass Female 1.5" NST Thread | BV33: 18 | CC33: Grooved Coupling 4" | CE33: =27.99+(27.99*$CE$5) -> 37.7865 | DF33: END
F34: AKA Administrative Law | L34: NSF = National Fine | T34: Bushing 1.00" x 3/4" | U34: 1 | V34: 2.501 | W34: 0.75 | X34: 3 | Y34: 4 | Z34: 8 | AD34: Hanger Side STL Beam 1.5" each | AF34: 88 | AG34: =+Table09[[#This Row],[$]]+(Table09[[#This Row],[$]]*$AG$4) -> 119.68 | AM34: RA F-1SR56 155 HSW Brass w/escut | AO34: =17+9 -> 26 | AU34: =SUBTOTAL(103,Table07[Description]) & " Items" -> 27 Items | AX34: =SUBTOTAL(103,Table07[Notes]) -> 0 | BB34: Mech Tee VIC 922 3.00 x 1.25 | BD34: 25.164 | BT34: FDC Caps Brass Female 2.5" NST Thread | BV34: 21 | CC34: Grooved Reducing Coupling 4" x 3" | CE34: =51.66+(51.66*$CE$5) -> 69.741 | DF34: END
G35: SORT | T35: Bushing 1.25" x 1.00" | V35: 3.5 | W35: 0.95 | AD35: Hanger Stand off 2H CPVC | AF35: 1.18 | AG35: =+Table09[[#This Row],[$]]+(Table09[[#This Row],[$]]*$AG$4) -> 1.6048 | AM35: RA F-1SR56 155 White HSW w/escut | AO35: =20+1.5 -> 21.5 | AU35: All Ranges must be sorted ALPHABETICALLY | BB35: Mech Tee VIC 922 3.00 x 1.5 | BD35: 25.164 | BT35: FDC Caps Metal Breakable Female 2.5" $3.25 ea. Comes as a pair (2) | BV35: 6.5 | CC35: Nipple 1.0"x2" BNGK | CE35: 4 | CI35: 4 | DF35: END
G36: Black-S10 | T36: Bushing 1.25" x 3/4" | V36: 3.5 | W36: 0.95 | AD36: Hanger TolCo FG 200 1" Band hanger PGLfor CPVC | AF36: 0.3 | AG36: =+Table09[[#This Row],[$]]+(Table09[[#This Row],[$]]*$AG$4) -> 0.408 | AM36: RA F-1SR56 155 White PENDANT w/escut | AO36: =15+1.5 -> 16.5 | BB36: Mech Tee VIC 922 3.00 x 2 | BD36: 28.944 | BT36: FDC Caps Plastic Breakable Argco 2.5" $1.20 ea. Comes as a pair (2) | BV36: 2.4 | CC36: Nipple 1.0"x3" BNGM | CE36: 4.25 | CI36: 4.25 | DF36: END
F37: =872/30 -> 29.06666667 | G37: Black-S40 | T37: Bushing 1.50" x 1.00" | V37: 4 | W37: 0.95 | AD37: HangerMate Threaded Rod Anchoring System wood EZG650 & EZG670 Anchors | AF37: 0 | AG37: =+Table09[[#This Row],[$]]+(Table09[[#This Row],[$]]*$AG$4) -> 0 | AM37: RA G6 Cover plate. QR EC-Lhazard | AO37: 100 | AP37: Doubled to account for escutcheons | AW37: =76.506+(76.506*0.0725) -> 82.052685 | BB37: Mech Tee VIC 922 4.00 x 1.25 | BD37: 27.54 | BT37: FDC Caps Plastic Breakable Female 2.5" $1.53 ea. Comes as a pair (2) | BV37: 3 | CC37: Nipple 1.0"x3.5" BNGN | CE37: 4.25 | DF37: END
G38: CPVC | T38: Bushing 1.50" x 1.25" | V38: 4.25 | W38: 0.95 | AD38: Sammy Wood 3/8 horiz sidewinder SWG20 per case of 100 | AF38: =109*2.25 -> 245.25 | AG38: =+Table09[[#This Row],[$]]+(Table09[[#This Row],[$]]*$AG$4) -> 333.54 | AH38: Link | AM38: RA G-F1W Collar & Escutcheon for F-1FR56 P1W | AO38: 2 | BB38: Mech Tee VIC 922 4.00 x 1.5 | BD38: 28.728 | BT38: FDC Croker 2-Way Clapper Inlet Grooved 6010 COMPLETE | BV38: =+(433+110)+((433+110)*6%)+N("2018-05-02 Steel increase") -> 575.58 | CC38: Nipple 1.0"x4" BNGP | CE38: 5 | CI38: 5.25 | DF38: END
B39: Index | G39: DynaFlow-S10 | R39: Index | T39: Bushing 1.50" x 1.25" Blk Hex | V39: 4.25 | AB39: Index | AD39: Sammy Wood horiz sidewinder per box of 25 | AF39: =25*0.676 -> 16.9 | AG39: =+Table09[[#This Row],[$]]+(Table09[[#This Row],[$]]*$AG$4) -> 22.984 | AJ39: Index | AM39: RA0616 SP 155/135 K3.0 to7.0 RFC49 White Concealed W/Cover Residential | AO39: =12.1+5.5 -> 17.6 | AR39: Index | AZ39: Index | BB39: =SUBTOTAL(103,Table18[Description]) -> 32 | BD39: =SUBTOTAL(109,Table18[$]) -> 1295.367 | BF39: Index | BQ39: Index | BT39: FDC Croker 2-Way Plate 6900 PB-A PLATE ONLY 4514575995 HD | BV39: =+(92.65)+((92.65)*6%)+N("2018-05-02 Steel increase") -> 98.209 | BZ39: Index | CC39: Nipple 1.0"x4.5" BNGR | CE39: 5.2 | CK39: Index | CR39: Index | DE39: Index | DF39: END
G40: DynaThread | T40: Bushing 1.50" x 3/4" | W40: 0.95 | AD40: Sammy Wood Pendant 25 per box | AF40: =0.88*25 -> 22 | AG40: =+Table09[[#This Row],[$]]+(Table09[[#This Row],[$]]*$AG$4) -> 29.92 | AM40: RA3415 G5 G51B Concealed Head. Add CG40W cover | AO40: 11.25 | BT40: FDC Croker 2-Way Plate 6900 PB-A PLATE ONLY Ferguson | BV40: =+(91+50)+((91+50)*6%)+N("2018-05-02 Steel increase") -> 149.46 | CC40: Nipple 1.0"x5" BNGS | CE40: 5.2 | DF40: END
G41: Galvanised | L41: All Ranges must be sorted ALPHABETICALLY on 'Description' | T41: Bushing 2.00" x 1.00" | W41: 1.5 | AD41: Strap Erico 109 Side Mount for CPVC 1090100EG from 1" thru 2" each | AF41: 0.75 | AG41: =+Table09[[#This Row],[$]]+(Table09[[#This Row],[$]]*$AG$4) -> 1.02 | AM41: RA3415 G5 G51B CG40W for G51B head | AO41: 8 | BT41: FDC Name plate escutcheon Auto-Sprinkler (circle) | BU41: Brass | BV41: 45 | CC41: Nipple 1.0"x6" BNGU | CE41: 7.2 | CI41: 7.25 | DF41: END
T42: Bushing 2.00" x 1.25" | W42: 1.5 | AD42: Strap TolCo 132010 FG 22 1" Strap for CPVC | AF42: 1 | AG42: =+Table09[[#This Row],[$]]+(Table09[[#This Row],[$]]*$AG$4) -> 1.36 | AM42: RA4762 G6-80 Conc. QR EC-Lhazard Side-wall Dorms Hospitals | AO42: 100 | BB42: All Ranges must be sorted ALPHABETICALLY on 'Description' | BT42: FDC Name plate escutcheon StandPipe (circle) | BU42: Blk | BV42: 12 | CC42: Nipple 2.0"x3" BNKM | CE42: 8.25 | CI42: 8.5 | DF42: END
H43: CategoryWetLst | T43: Bushing 2.00" x 1.50" | W43: 1.5 | AD43: Strap TolCo 136010 Dble Faster Side Mount strap-type for CPVC per 100 | AF43: 72 | AG43: =+Table09[[#This Row],[$]]+(Table09[[#This Row],[$]]*$AG$4) -> 97.92 | AM43: RA4835 HSW 155/135 K4.2 White Flat Concealed W/Cover (RFS42) Residential | AO43: =25+7 -> 32 | BT43: FDC Siamese Brass 3" & chk v/v & nipple | BV43: =+(150+152)+((150+152)*6%)+N("2018-05-02 Steel increase") -> 320.12 | CC43: Nipple 2.0"x4" BNKP | CE43: 10 | CI43: 10 | DF43: END
H44: Antifreeze | T44: Bushing 2.00" x 1.50" LF Brass | V44: 22 | AD44: Strut 1-5/8 x1-5/8 x 10 12 GREE H/SL each | AF44: 2.2 | AG44: =+Table09[[#This Row],[$]]+(Table09[[#This Row],[$]]*$AG$4) -> 2.992 | AM44: RA6414 SP SR 155 K5.6 Stainless Steel F1-56SS | AO44: 0 | BT44: FDC Siamese Brass 4" 2.5x2.5" STR NST BARE no valve | BV44: 89 | CC44: Nipple 2.0"x6" BNKU | CE44: 15 | CI44: 15 | DF44: END
H45: AWP Rentals | T45: Bushing 2.00" x 3/4" | W45: 1.5 | AD45: Sway brace EQ COMPLETE Beam to branchline pipe | AF45: =7.25+N("Quick-end")+7.25+N("2 bolts")+2+N("beam clamp")+6.55 -> 23.05 | AG45: =+Table09[[#This Row],[$]]+(Table09[[#This Row],[$]]*$AG$4) -> 31.348 | AM45: RA6424 SU SR 155 K5.6 Stainless Steel F1-56SS | AO45: 0 | BT45: FDC Siamese Brass 4" 2.5x2.5" & chk v/v & nipple | BV45: =200+165 -> 365 | CC45: Nipple 2.0"xClose Blk Stl | CE45: 7.5 | CI45: 7.5 | DF45: END
H46: BFP's | T46: Bushing 2.00" x 3/4" | W46: 1.5 | AD46: Sway brace fitting Afcon 035 Model K 1.25" | AF46: 8.65 | AG46: =+Table09[[#This Row],[$]]+(Table09[[#This Row],[$]]*$AG$4) -> 11.764 | AM46: TY DS-1 Dry HSW 155 QR Chrome 12" | AO46: 92 | BT46: FDC Single Blk 2.5" swivel FNST x FPT | BV46: 55 | CC46: Nipple 2.5"x6" BNGNLU | CE46: 35 | CI46: 32 | DF46: END
H47: Compressor Stuff | T47: Bushing 2.50" x 1.25" | W47: 2.6 | AD47: Sway brace fitting Afcon 035 Model K 1.50" | AF47: 8.65 | AG47: =+Table09[[#This Row],[$]]+(Table09[[#This Row],[$]]*$AG$4) -> 11.764 | AM47: TY DS-1 Dry Pend 155 QR Chrome 12" | AO47: 79 | BT47: FDC Single Brass 2.5" Angle Hose Valves for StandPipes FPPI RB FXM | BV47: 83 | BX47: http://www.fppi.com/angle-hose-valves/ | CC47: Thread by groove 4 x 4 | CE47: =70+(70*$CE$5) -> 94.5 | DF47: END
H48: Els/90's Tees et al | T48: Bushing 2.50" x 1.50" | W48: 2.6 | AD48: Sway Bracing 1.50 x 1" | AF48: 7.5 | AG48: =+Table09[[#This Row],[$]]+(Table09[[#This Row],[$]]*$AG$4) -> 10.2 | AH48: Link | AM48: TY DS-1 Dry Pend 200 QR Chrome 12" | AO48: 79 | BT48: FPPI 02-018 Alarm Test 6"x2" | BV48: 0.67 | CC48: TYC 577 Rigid Coupling PTD 2" W/p Lube | CE48: =6.5+(6.5*$CE$5) -> 8.775 | DF48: END
H49: Hangers | T49: Bushing 2.50" x 2.00" | W49: 2.6 | AD49: Sway Bracing Attachment Fitting Locking Afcon 075 or 077 | AF49: 7.05 | AG49: =+Table09[[#This Row],[$]]+(Table09[[#This Row],[$]]*$AG$4) -> 9.588 | AH49: Link | AM49: TY#### 0.75" 200 deg 7.8k Attic Hip Brass | AO49: 147 | BT49: FPPI 02-082 Main Control 6"x2" | BV49: 0.67 | CC49: TYC 577 Rigid Coupling PTD 4" W/p Lube | CE49: =9+(9*$CE$5) -> 12.15 | DF49: END
H50: Heads | T50: Bushing 3.00" x 2.00" | W50: 4 | AD50: Sway Bracing EQ 4" | AF50: 9.5 | AG50: =+Table09[[#This Row],[$]]+(Table09[[#This Row],[$]]*$AG$4) -> 12.92 | AH50: Link | AM50: TY#### Attic BB1 3/4 8.0k | AO50: 89 | BT50: FPPI 02-086 Main Drain 6"x2" | BV50: 0.67 | CC50: TYC 577 Rigid Coupling PTD 6" W/p Lube | CE50: =11+(11*$CE$5) -> 14.85 | DF50: END
H51: Mech-Tees | R51: Index | T51: Caps 1 inch | V51: 2.98 | AB51: Index | AD51: Sway Bracing lag bolts each | AF51: 1 | AG51: =+Table09[[#This Row],[$]]+(Table09[[#This Row],[$]]*$AG$4) -> 1.36 | AH51: Link | AJ51: Index | AM51: TY1334 TYC LFII 1/2 K4.2 155 WH HSW | AO51: 10 | AR51: Index | AZ51: Index | BF51: Index | BQ51: Index | BT51: FPPI 06-526 BBV 2" Grv Brz | BV51: 180 | BZ51: Index | CC51: TYC 577 Rigid Coupling PTD 8" W/p Lube | CE51: =17+(17*$CE$5) -> 22.95 | CK51: Index | CR51: Index | DE51: Index | DF51: END
H52: Misc Parts & Accessories | T52: Caps 1.25 inch | V52: 3.95 | AD52: Sway Bracing Lock-In attachment (Quick-End) Afcon A077G | AF52: 7.5 | AG52: =+Table09[[#This Row],[$]]+(Table09[[#This Row],[$]]*$AG$4) -> 10.2 | AH52: Link | AM52: TY2235 TYC DSR DRY RES PD 12IN 1" NPT 155F W/REC ESC K=4.9 WH/WH | AO52: 94 | BT52: FPPI 06-866 Swing Check Valve 1 1/4" | BV52: 24 | CC52: Union 1.00" | CE52: =10.25+(10.25*$CE$5) -> 13.8375 | DF52: END
H53: Pipe | T53: Caps 3 inch | V53: 28.36 | AD53: Trubolt (RedHead) Wedge Anchor 3/8x2-3/4 CS WA38234 $106 per 100 | AF53: =(105.287/100) -> 1.05287 | AG53: =+Table09[[#This Row],[$]]+(Table09[[#This Row],[$]]*$AG$4) -> 1.4319032 | AM53: TY2524 0.50" SP LFII 160F K4.9 Brass Concealed Residential | AO53: see 3569 | BT53: FPPI 11-566 1/4 Gauge Kit | BV53: 20 | CC53: Union 1.25" | CE53: =14.7+(14.7*$CE$5) -> 19.845 | DF53: END
H54: Valves/Drains/Gauges FDC | T54: EL 1.00" x 1/2" Reducing elbow | V54: 4 | AD54: Unistrut=Universal Strut= Strut $2.50 per foot per 10 feet: | AF54: 25 | AG54: =+Table09[[#This Row],[$]]+(Table09[[#This Row],[$]]*$AG$4) -> 34 | AM54: TY3111 0.50" SU TY-L 212F K5.6 Brass OP | AO54: 11 | BT54: FPPI AGF600 0.5" Model 7000 Pressure Relief valve PRV-UL | BV54: 58 | CC54: Union 1.50" | CE54: =18.33+(18.33*$CE$5) -> 24.7455 | DF54: END
C55: Notes: | H55: Weldlets & Couplings | T55: EL 1.25" Blk CI | V55: 4.25 | AD55: VIC Flex AB1 Brackets 24" | AF55: 8 | AG55: =+Table09[[#This Row],[$]]+(Table09[[#This Row],[$]]*$AG$4) -> 10.88 | AH55: Link | AM55: TY3187 0.50" 200 deg 5.6k Brass Attic Hip | AO55: 122 | BT55: Gauge AIR 300 psi 3/4", price each is | BU55: 1/4" | BV55: 18 | CC55: Union Dielectric 1-1/2" FIP x SWT | CE55: 25 | DF55: END
C56: Right-Click in bottom row of table, Left-Click on Insert. Choose Table Row Above | H56: Wrenches | T56: EL 1.25" slipxslip cpvc | W56: 2.55 | AD56: VIC Flex AB1 Brackets 48" | AF56: 11 | AG56: =+Table09[[#This Row],[$]]+(Table09[[#This Row],[$]]*$AG$4) -> 14.96 | AH56: Link | AM56: TY3211 0.50" Pend brass TY-L 165 SR 5.6K CP Plus Cvr SolderLink | AO56: =11+1.25 -> 12.25 | BT56: Gauge WATER 0-300 for Riser room FNW9101P NEED two, price each is | BU56: 3.5" | BV56: 32 | CC56: VIC 000 F/Lck PTD 6 x 4" Grv Coup E-Gskt | CE56: =105+(105*$CE$5) -> 141.75 | DF56: END
T57: EL 2" Blk DI | V57: 6 | AD57: VIC Flex AB2 Brackets 24" | AF57: 8 | AG57: =+Table09[[#This Row],[$]]+(Table09[[#This Row],[$]]*$AG$4) -> 10.88 | AH57: Link | AM57: TY3211 0.50" Pend brass TY-L 165 SR 5.6K OP | AO57: 8.25 | AP57: http://www.tyco-fire.com/TD_TFP/TFP/TFP110_11_2015.pdf | BT57: Gauge WIKA 213.53 2.5" Pressure 0-300 psi. Glycerine filled for copper pipe | BV57: 45 | CC57: VIC 000 F/Lck PTD 6" 45 | CE57: =47+(47*$CE$5) -> 63.45 | DF57: END
C58: When 'Protecting' WorkSheet, allow users to Edit Objects; and they will be able to use the combobox. | T58: EL 2" x 1.50" Blk DI | V58: 7.125 | AD58: VIC Flex AB5 Brackets allows for vertical sprinkler adjustment | AG58: =+Table09[[#This Row],[$]]+(Table09[[#This Row],[$]]*$AG$4) -> 0 | AH58: Link | AM58: TY3311 0.50" Upright brass TY-L 165 SR 5.6K CP SolderLink | AO58: 14.09 | BT58: Hose Valve RB FXM NST 1.50" | BV58: 69 | CC58: VIC 000 F/lock flange adapter with 744 | CE58: 99 | DF58: END
C59: subtracted 6 to remove .xlsm. Or if want the extension use -1 | T59: EL 3.00" Grooved | V59: 13 | AD59: VIC Flex AB7 Brackets 24" Adjustable for suspended and hard-lid ceilings | AF59: 6 | AG59: =+Table09[[#This Row],[$]]+(Table09[[#This Row],[$]]*$AG$4) -> 8.16 | AH59: Link | AM59: TY3335 1.00" 21" NPT HSW brass RF-II 155 QR 5.6K Conc Plus cvr DS1 | AO59: =83+3 -> 86 | BT59: Hose Valve RB FXM NST 2.50" | BV59: 89 | CC59: VIC 005 Rigid Coup E 2.0" | CE59: 11 | CN59: All Ranges must be sorted ALPHABETICALLY on 'Description' | DF59: END
C60: Developer>Design Mode | T60: EL 3.00" x 4" | V60: 18.083 | AD60: VIC Flex AB7 Brackets 36" Adjustable for suspended and hard-lid ceilings | AF60: 7 | AG60: =+Table09[[#This Row],[$]]+(Table09[[#This Row],[$]]*$AG$4) -> 9.52 | AH60: Link | AM60: TY3335 1.00" 24" NPT HSW brass RF-II 155 QR 5.6K Conc Plus cvr DS1 | AO60: =92+3 -> 95 | BT60: LF 1-1/2" WTR Press Reducing V/V | BV60: 515 | BX60: Ferg Plumbing | CC60: VIC 005 Rigid Coup E 2.5" | CE60: 12 | DF60: END
B61: Index | J61: Index | T61: EL 4" PTD F/Lck | V61: 17 | AD61: VIC Flex AB7 Brackets 48" Adjustable for suspended and hard-lid ceilings | AF61: 8 | AG61: =+Table09[[#This Row],[$]]+(Table09[[#This Row],[$]]*$AG$4) -> 10.88 | AH61: Link | AM61: TY3531 0.50" Pend brass RF-II 155 QR 5.6K Conc Plus cvr | AO61: =13+6.5 -> 19.5 | BT61: Low-Air Manual Press. Maint. device | BV61: 597 | CC61: VIC 005 Rigid Coup E 3.0" | CE61: 13.6 | DF61: END
T62: EL 4.00" Grooved | V62: 19 | AD62: VIC Flex AH1 Braided Hose 1/2x 31" | AF62: 25 | AG62: =+Table09[[#This Row],[$]]+(Table09[[#This Row],[$]]*$AG$4) -> 34 | AM62: TY3531 RFII T567924135 0.75" brs Cover Plate White | AO62: 6.5 | BT62: Meuller OS&Y Flange x Flange no tamper 8.0" | BV62: 1192 | CC62: VIC 005 Rigid Coup E 3.5" | CE62: 16 | DF62: END
T63: EL 6" PTD F/Lck | V63: 58 | AD63: VIC Flex AH1 Braided Hose 1/2x 72" | AF63: 37 | AG63: =+Table09[[#This Row],[$]]+(Table09[[#This Row],[$]]*$AG$4) -> 50.32 | AM63: TY3569 0.50" Pend brass Conc res LF-II 160 QR 49K CP only 562024135 | AO63: 6 | BT63: Meuller OS&Y NRS Flange x Flange no tamper 6.0" | BV63: 732 | CC63: VIC 005 Rigid Coup E 4.0" | CE63: 19 | DF63: END
T64: FPPI 65DC3080 drain cap Grooved | V64: 38 | AD64: VIC Flex AH1 Braided Hose 3/4x 48" | AF64: 28 | AG64: =+Table09[[#This Row],[$]]+(Table09[[#This Row],[$]]*$AG$4) -> 38.08 | AM64: TY3569 0.50" Pend brass Conc res LF-II 160 QR 49K HEAD only | AO64: 14 | BT64: NXT-746-LPA Dry Accelerator | BV64: 910 | CC64: VIC 005H F/Lck PTD 3.0" EZ Rigid Coup E | CE64: =12.64+(12.64*$CE$5) -> 17.064 | DF64: END
T65: Plug Brass 0.5" | Z65: 4.5 | AD65: VIC Flex AH1 Braided Hose 3/4x 72" | AF65: 37 | AG65: =+Table09[[#This Row],[$]]+(Table09[[#This Row],[$]]*$AG$4) -> 50.32 | AM65: TY3569 0.50" Pend brass Conc res LF-II 160 QR 49K Plus cvr | AO65: =14+6 -> 20 | AP65: RF = Royal Flush | BT65: NXT-768N 2" Dry VS-024-N69-403 w/776 768 from 1 to 2.5 " | BU65: 2.5" Dry | BV65: =3385 -> 3385 | CC65: VIC 009N F/Lck PTD 1.5" EZ Rigid Coup E | CE65: =6+(6*CE$5) -> 8.1 | CI65: =7+(7*CI$5) -> 9.59 | DF65: END
B66: Index | J66: Index | R66: Index | T66: Plug Brass 1.0" | Z66: 6.5 | AB66: Index | AD66: VIC Flex AH2 Braided Hose 1/2x 31" | AF66: 33 | AG66: =+Table09[[#This Row],[$]]+(Table09[[#This Row],[$]]*$AG$4) -> 44.88 | AJ66: Index | AM66: TY4111 0.75" SSU brass TY-L 165 SR 8K OP | AR66: Index | AZ66: Index | BF66: Index | BQ66: Index | BT66: NXT-768N 3" Dry VS-030-N69-403 w/776 768 | BU66: 3" Dry | BV66: =3385 -> 3385 | BZ66: Index | CC66: VIC 009N F/Lck PTD 2.0" EZ Rigid Coup E | CE66: =7+(7*$CE$5) -> 9.45 | CI66: 7.75 | CK66: Index | CR66: Index | DE66: Index | DF66: END
T67: Plug MI 0.5" | U67: 0.55 | AD67: VIC Flex AH2 Braided Hose 1/2x 36" | AF67: 35 | AG67: =+Table09[[#This Row],[$]]+(Table09[[#This Row],[$]]*$AG$4) -> 47.6 | AM67: TY4211 0.75" Pend brass TY-L 165 SR 8K CP Plus Cvr | BT67: NXT-768N 4" Dry VS-040-N69-403 w/776 768 | BU67: 4" Dry | BV67: 3518 | CC67: VIC 009N F/Lck PTD 2.5" EZ Rigid Coup E | CE67: =8+(8*$CE$5) -> 10.8 | CI67: 9.5 | DF67: END
T68: Plug MI 1.0" | U68: 1.8 | AD68: VIC Flex AH2 Braided Hose 1/2x 48" | AF68: 37 | AG68: =+Table09[[#This Row],[$]]+(Table09[[#This Row],[$]]*$AG$4) -> 50.32 | AM68: TY5111 0.75" SSU 212 K11.2 ELO-231 | BT68: NXT-768N 6" Dry Gasket repair kit | BU68: 8" | BV68: 60 | CC68: VIC 009N F/Lck PTD 3.0" EZ Rigid Coup E | CE68: =9+(9*$CE$5) -> 12.15 | CI68: 11 | DF68: END
T69: Plug MI 1.5" | U69: 3.25 | AD69: VIC Flex AH2 Braided Hose 1/2x 60" | AF69: 41 | AG69: =+Table09[[#This Row],[$]]+(Table09[[#This Row],[$]]*$AG$4) -> 55.76 | AM69: TY5137 0.75" SSU brass EC11 155/200/286 QR 11.2K ELO | AO69: 16 | AP69: HD light/ord hazard Extnded Coverage | BT69: NXT-768N 6" Dry VS-060-N69-403 w/776 768 | BU69: 6" Dry | BV69: 4081 | CC69: VIC 009N F/Lck PTD 4.0" EZ Rigid Coup E | CE69: =12.5+(12.5*$CE$5) -> 16.875 | CI69: 15 | DF69: END
T70: Plug MI 2.0" | U70: 4.5 | AD70: VIC Flex AH2 Braided Hose 1/2x 72" | AF70: 45.5 | AG70: =+Table09[[#This Row],[$]]+(Table09[[#This Row],[$]]*$AG$4) -> 61.88 | AM70: TY5211 0.75" SSP 212 K11.2 ELO-231 | BT70: NXT-776-LPA Accelerator | CC70: VIC 009N F/Lck PTD 6.0" EZ Rigid Coup E | CE70: =19.5+(19.5*$CE$5) -> 26.325 | CI70: 23.5 | DF70: END
T71: Tee 0.50 Half-inch | V71: 3.75 | AD71: VIC Flex AH2 Braided Hose 3/4x 31" | AF71: 33 | AG71: =+Table09[[#This Row],[$]]+(Table09[[#This Row],[$]]*$AG$4) -> 44.88 | AM71: TY5237 0.75" SSP brass EC11 155 QR 11.2K Plus cvr BLACK | BT71: Post Indicator Valve - ADJUSTABLE | BV71: 695.51 | CC71: VIC 2.00" Quick Rigid | CE71: =8+(8*$CE$5) -> 10.8 | DF71: END
T72: Tee 1.00 One-inch | V72: 2.5 | W72: 1.4 | AD72: VIC Flex AH2 Braided Hose 3/4x 36" | AF72: 35 | AG72: =+Table09[[#This Row],[$]]+(Table09[[#This Row],[$]]*$AG$4) -> 47.6 | AM72: TY5811 0.50" SSU 212 K11.2 ELO-231 | AO72: 19 | BT72: Post Indicator Valve R/W FLG X FLG | BU72: 4" | BV72: 426.57 | CC72: VIC 2.50" Quick Rigid | CE72: =8.25+(8.25*$CE$5) -> 11.1375 | DF72: END
T73: Tee 1.00" x 1.00" x half | V73: 2.665 | AD73: VIC Flex AH2 Braided Hose 3/4x 48" | AF73: 37 | AG73: =+Table09[[#This Row],[$]]+(Table09[[#This Row],[$]]*$AG$4) -> 50.32 | AM73: TY6137 0.75" SSU brass EC14 155 QR 14K Plus cvr BLACK | BT73: Post Indicator Valve R/W FLG X FLG | BU73: 6" | BV73: 616.72 | CC73: VIC 3.00" Quick Rigid | CE73: =8.5+(8.5*$CE$5) -> 11.475 | DF73: END
T74: Tee 1.25 inch | V74: 12.5 | W74: 2.55 | AD74: VIC Flex AH2 Braided Hose 3/4x 72" | AF74: 45.5 | AG74: =+Table09[[#This Row],[$]]+(Table09[[#This Row],[$]]*$AG$4) -> 61.88 | AM74: TY6237 0.75" SSP brass EC14 155 QR 14K Plus cvr BLACK | AP74: HD light/ord hazard | BT74: Post Indicator Valve WALL 773 | BV74: 585 | CC74: VIC 3.50" Quick Rigid | CE74: =8.75+(8.75*$CE$5) -> 11.8125 | DF74: END
T75: Tee 1.25 x 1.00 x 1.50 | V75: 9.89 | AD75: VIC Flex AH5 Braided Hose 1/2x 31" | AF75: 25 | AG75: =+Table09[[#This Row],[$]]+(Table09[[#This Row],[$]]*$AG$4) -> 34 | AM75: TY911060007 Escutcheon for DS1 Dry pend head One-Piece Push-on | AO75: 3.1 | BT75: Post Indicator Wrench-ADJUSTABLE | BV75: 70.52 | CC75: VIC 4.00" Quick Rigid | CE75: =12+(12*$CE$5) -> 16.2 | DF75: END
T76: Tee 1.25 x 1.00 x half | V76: 4.323 | AD76: VIC Flex AH5 Braided Hose 1/2x 72" | AF76: 39 | AG76: =+Table09[[#This Row],[$]]+(Table09[[#This Row],[$]]*$AG$4) -> 53.04 | AM76: Tyco Head Guard TY569381066 | AO76: 6 | BT76: Potter Electric Control Valve PCVS-2 Supervisory Switch | BV76: 75 | CC76: VIC 4.00" Standard Rigid | CE76: =14+(14*$CE$5) -> 18.9 | DF76: END
T77: Tee 1.25 x 1.25 x .50" | AD77: VIC Flex AH5 Braided Hose 3/4x 48" | AF77: 29 | AG77: =+Table09[[#This Row],[$]]+(Table09[[#This Row],[$]]*$AG$4) -> 39.44 | AM77: TY-FRB 0.50" Uprit brass K5.6 175 BLK TY323 | AO77: =7.5+N("add esc+collar")+2+1 -> 10.5 | BT77: Potter Electric Flow Sw PVSRG 1.5" | BV77: 115 | CC77: VIC 50 2.0 x1.00" Reducing Groove Coupling CONCENTRIC | CI77: =42+(42*$CE$5) -> 56.7 | DF77: END
T78: Tee 1.25 x 1.25 x .75" | V78: 0 | W78: 3.25 | AD78: VIC Flex AH5 Braided Hose 3/4x 72" | AF78: 39 | AG78: =+Table09[[#This Row],[$]]+(Table09[[#This Row],[$]]*$AG$4) -> 53.04 | AM78: Uprt Brass 5.6k 200 deg 1/2" | AO78: 10 | BT78: Potter Electric Flow Sw PVSRK 2.0" | BV78: 113 | CC78: VIC 50 2.0 x1.50" Reducing Groove Coupling CONCENTRIC | CI78: =46+(46*$CE$5) -> 62.1 | DF78: END
T79: Tee 1.25 x 1.25 x 1" | V79: 10.78 | W79: 2.6 | AD79: =SUBTOTAL(103,Table09[Description]) & " Items" -> 72 Items | AM79: Uprt Brass 5.6k 212 deg 1/2" | AO79: 10 | BT79: Potter Electric Flow Sw PVSRM 2.5" | BV79: 125 | BX79: pdf | CC79: VIC 50 2.5 x1.50" Reducing Groove Coupling CONCENTRIC | CI79: =43+(43*$CE$5) -> 58.05 | DF79: END
T80: Tee 1.25 x 1.25 x 1.50" | V80: 10.78 | AM80: V2701 SR 0.375 SSUp Brs V27 155 K2.8 VIC Firelock | BT80: Potter Electric Flow Sw PVSRM 3.0" | BV80: 113 | CC80: VIC 50 4.0 x2.50" Reducing Groove Coupling CONCENTRIC | CI80: 70 | DF80: END
B81: Index | J81: Index | R81: Index | T81: Tee 1.25" blk CI | V81: 7.25 | AB81: Index | AJ81: Index | AM81: V2702 QR 0.375 SSUp Brs V27 155 K2.8 VIC Firelock | AR81: Index | AZ81: Index | BF81: Index | BQ81: Index | BT81: Potter Electric Flow Sw PVSRN 3.5" | BV81: 113 | BZ81: Index | CC81: VIC 50 4.0 x2.50" Reducing Groove Coupling CONCENTRIC | CI81: 145 | CK81: Index | CR81: Index | DE81: Index | DF81: END
T82: Tee 1.50 x 1.25 x 0.5 | V82: 12.65 | AM82: V2704 QR 0.50 SSUp Brs V27 155 K5.6 VIC Firelock | AO82: 7.5 | BT82: Potter Electric Flow Sw PVSRP 4.0" w/retard | BV82: 115 | CC82: VIC 741 Grv Flange 10" | CE82: =648+(648*$CE$5) -> 874.8 | DF82: END
T83: Tee 1.50 x 1.25 x half | V83: 5.415 | AD83: All Ranges must be sorted ALPHABETICALLY on 'Description' | AM83: V2704 QR 0.50 SSUp Brs V27 200 K5.6 VIC Firelock | AO83: 7.75 | BT83: Potter Electric Flow Sw PVSRS 5.0" | BV83: 115 | CC83: VIC 741 Grv Flange 4.0" | CE83: =287+(287*$CE$5) -> 387.45 | DF83: END
T84: Tee 1.50 x 1.50 x 0.50" | V84: 12.65 | AM84: V2705 SR 0.375 SSPend Brs V27 155 K2.8 VIC Firelock | BT84: Potter Electric Flow Sw PVSRU 6.0" | BV84: 120 | CC84: VIC 741 Grv Flange 6.0" | CE84: =370+(370*$CE$5) -> 499.5 | DF84: END
T85: Tee 1.50" | V85: 7.33 | AM85: V2705 SR 0.375 SSPend Brs V27 155 K2.8 VIC Firelock RECESSED | BT85: Potter Electric Flow Sw PVSRX 8.0" | BV85: 127 | CC85: VIC 743 Grv Flange 6.0" | CE85: =640+(640*$CE$5) -> 864 | DF85: END
T86: Tee 2.00 x 1.50 x half | V86: 8.892 | AM86: V2706 QR 0.375 SSPend Brs V27 155 K2.8 VIC Firelock | BT86: Potter Electric SASH Horn Strobe PSASH 120 VAC | BV86: 99 | CC86: VIC 744 Grv Flange 2.0" | CE86: =52+(52*$CE$5) -> 70.2 | DF86: END
T87: Tee 2.00 x x 2.00 x 1.25 | V87: 17.29 | AM87: V2706 QR 0.375 SSPend Brs V27 155 K2.8 VIC Firelock RECESSED | BT87: Potter Electric Supervisory Sw PPS402A 1.5 x $" MNPT | BV87: 108 | CC87: VIC 744 Grv Flange 2.5" | CE87: =61+(61*$CE$5) -> 82.35 | DF87: END
T88: Tee 2.00 x x 2.00 x 1.50 | V88: 17.65 | AM88: V2707 SR 0.50 Pendant brass 155 K5.6 VIC Firelock Chrome or White RECESSED | AO88: 12 | BT88: Pressure Tank | BV88: 34 | CC88: VIC 744 Grv Flange 3.0" | CE88: =69+(69*$CE$5) -> 93.15 | DF88: END
T89: Tee 2.50 x 2.50 x 3 | V89: 12.75 | AM89: V2707 SR 0.50 Pendant brass 155 K5.6 VIC Firelock RECESSED | AO89: 10 | BT89: RASCO Model B1 Accelerator Accelo-Check | CC89: VIC 744 Grv Flange 4.0" | CE89: =89+(89*$CE$5) -> 120.15 | CI89: 108 | DF89: END
T90: Tee 3 x 2 x 3 | V90: 20.027 | AM90: V2708 QR 0.50 Pendant brass 155 K5.6 VIC Firelock White RECESSED | AO90: 9 | BT90: System Sensor Water Flow Detector Valves P/N 4WDN & WFD 40N | BV90: 999 | CC90: VIC 744 Grv Flange 6.0" | CE90: =116+(116*$CE$5) -> 156.6 | CI90: 141 | DF90: END
T91: Tee 3 x 3 x 2.5 | V91: 20.027 | AM91: V2708 QR 0.50 Pendant brass 200 K5.6 VIC Firelock White Commercial | AO91: 9 | BT91: TYC 523122001 QRS Electric Trim | BV91: 1572 | CC91: VIC 744 Grv Flange 8.0" | CE91: =146+(146*$CE$5) -> 197.1 | DF91: END
T92: Tee 3 x 3 x 3 | V92: 17.775 | AM92: V2710 0.50 QR HSW 155 K5.6 VIC Firelock Chr, Wh or Brs | AO92: 13.5 | BT92: TYC 87AMD-1 Air Maint Device | BV92: 257 | CC92: VIC 750 2.00"x1.5" Reducing Groove Coupling | CE92: =32+(32*$CE$5) -> 43.2 | CI92: 39 | DF92: END
T93: Tee 4 x 4 x 3 | V93: 30.251 | AM93: V2710 0.50 QR HSW 200 K5.6 VIC Firelock Chr, Wh or Brs | AO93: 13 | BT93: TYC ACC-1 523111001P Accelerator -MECHANICAL A | BV93: 720 | CC93: VIC 750 2.50"x2.0" Reducing Groove Coupling | CE93: =42+(42*$CE$5) -> 56.7 | CI93: 52 | DF93: END
T94: Tee 4 x 4 x 4 | V94: 34 | AM94: V2738 0.50 QR HSW 155 K4.2 RES VIC Firelock | AO94: 11 | BT94: TYC ACC-1 87523112010 Accelerator Trim Galv -MECHANICAL B | BV94: 279 | CC94: VIC 750 3.00"x2.0" Reducing Groove Coupling | CE94: =47+(47*$CE$5) -> 63.45 | CI94: 59 | DF94: END
T95: Tee F/Lck PTD 6" | V95: 76 | AM95: V2740 0.50 QR HSW Brs 155 K4.9 Res VIC Firelock | AO95: 12 | BT95: TYC DPV-1 87523103940 4" Dry pipe valve GXG pre-trimmed galv. | BV95: 2250 | CC95: VIC 750 3.00"x2.5" Reducing Groove Coupling | CE95: =41+(41*$CE$5) -> 55.35 | CI95: 52 | DF95: END
B96: Index | J96: Index | R96: Index | T96: Tee Three-inch | V96: 45.66 | AB96: Index | AJ96: Index | AM96: V2740 0.50 QR SSPend Brs Conc 155 K4.9 RES VIC Firelock | AO96: 10 | AR96: Index | AZ96: Index | BF96: Index | BQ96: Index | BT96: TYC VIZOR Dry Pipe Accelerator Electronic EDPA Switch -ELECTRIC | BV96: =1300+60+N("Battery") -> 1360 | BZ96: Index | CC96: VIC 750 4.00"x2.0" Reducing Groove Coupling | CE96: =74+(74*$CE$5) -> 99.9 | CI96: 93 | CK96: Index | CR96: Index | DE96: Index | DF96: END
T97: VIC 006 Cap Grooved 2.5 inch | V97: 5.3 | AM97: V2742 0.50 QR Pend Brs Conc 155 K4.9 VIC Firelock | AO97: 20 | BT97: VIC 705 Butterfly valve 4" Supervised | BV97: 230 | BX97: Specs | CC97: VIC 750 4.00"x2.5" Reducing Groove Coupling | CE97: =66+(66*$CE$5) -> 89.1 | CI97: 87 | DF97: END
T98: VIC 006 Cap Grooved 3 inch | V98: 6.5 | Y98: 12 | AM98: V2744 0.50 QR HSW Brs 155 K5.6 Res VIC Firelock | AO98: 29 | BT98: VIC 717 Valve Check Brass GxG 2" | BV98: 158 | CC98: VIC 750 4.00"x3.0" Reducing Groove Coupling | CE98: =64+(64*$CE$5) -> 86.4 | CI98: 80 | DF98: END
T99: VIC 006 Cap Grooved 4 inch | V99: 9.25 | Y99: 17 | AM99: V27-V29 Conc Cvr Plate White 135/57 deg VIC Firelock | AO99: 7.75 | BT99: VIC 717 Valve Check Brass GxG 3" | BV99: 165 | CC99: VIC 750 5.00"x4.0" Reducing Groove Coupling | CE99: =84+(84*$CE$5) -> 113.4 | CI99: 89 | DF99: END
T100: VIC 20 Grv Tee 2.0" | V100: 18.75 | AM100: V3401 SSU 17/32 (3/4") SPKR HD BRASS 155 | AO100: 10 | BT100: VIC 717 Valve Check Brass GxG 4" | BV100: 175 | CC100: VIC 750 6.00"x4.0" Reducing Groove Coupling | CE100: =125+(125*$CE$5) -> 168.75 | CI100: 158 | DF100: END
T101: VIC 20 Grv Tee 2.5" | V101: 25 | AM101: V3401 SSU 17/32 (3/4") SPKR HD BRASS 286 | AO101: 10 | BT101: VIC 717 Valve Check Brass GxG 6" | BV101: 430 | CC101: VIC 750 6.00"x5.0" Reducing Groove Coupling | CE101: =110+(110*$CE$5) -> 148.5 | DF101: END
T102: VIC 20 Grv Tee 3.0" | V102: 35 | AM102: V3401 SSU 17/32 (3/4") SPKR HD BRASS 299 | AO102: 10 | BT102: VIC 717 Valve Check Brass GxG 8" | BV102: 745 | CC102: VIC 750 8.00"x6.0" Reducing Groove Coupling | CE102: =189+(189*$CE$5) -> 255.15 | CI102: 235 | DF102: END
T103: zSpare 1 | U103: 990 | V103: 992 | W103: 994 | X103: 996 | Y103: 998 | Z103: 999 | AM103: V3402 0.75 QR Uprit brass V34 155 8.0K VIC Firelock Brs | AO103: 13 | BT103: VIC FireLock VS-747M Zone Control Riser module 2.5" | BV103: 555 | CC103: VIC 77 2.00" Standard Flexible | CE103: =33+(33*$CE$5) -> 44.55 | DF103: END
T104: zSpare 2 | V104: 45.66 | AM104: V3402 0.75 QR Uprit brass V34 200 8.0K VIC Firelock Brs | AO104: 13 | BT104: VIC FireLock VS-757 K01 Air Trim assembly | BV104: =368+42 -> 410 | BX104: Info Page | CC104: VIC 77 2.50" Standard Flexible | CE104: =38+(38*$CE$5) -> 51.3 | DF104: END
T105: =SUBTOTAL(103,Table27[Description]) -> 97 | Y105: =SUBTOTAL(103,Table27[Galvanised]) -> 5 | AM105: V3402 0.75 QR Uprit brass V34 286 8.0K VIC Firelock Brs | AO105: 13 | BT105: Wafer Butterfly Valve Domestic w/Switch 4" | BV105: =375+75 -> 450 | CC105: VIC 77 3.00" Standard Flexible | CE105: =42+(42*$CE$5) -> 56.7 | DF105: END
AM106: V3404 SSU 11.2 ELO231 QR SPKR HD BRASS 200 | AO106: 42 | BT106: Wafer Butterfly Valve Domestic w/Switch 8" | BV106: =761+75 -> 836 | CC106: VIC 77 4.00" Standard Flexible | CE106: =60+(60*$CE$5) -> 81 | DF106: END
AM107: V3405 SSP 3/4 X 17/32 SPKR HD CHROME 155 Blk | AO107: 18 | BT107: ZoneCheck Retro 4" add $90 to freight field | BV107: 1207 | CC107: VIC 77 6.00" Standard Flexible | CE107: =107+(107*$CE$5) -> 144.45 | DF107: END
AM108: V3406 SSP 3/4 X 17/32 QR SPKR HD Brass 155 | AO108: 12 | BT108: =SUBTOTAL(103,Table05[Description]) -> 101 | BX108: =SUBTOTAL(103,Table05[Notes]) -> 5 | CC108: VIC 77 8.00" Standard Flexible | CE108: =172+(172*$CE$5) -> 232.2 | DF108: END
AM109: V3406 SSP 3/4 X 17/32 QR SPKR HD Brass 200 | AO109: 20 | BT109: All Ranges must be sorted ALPHABETICALLY on 'Description' | CC109: VIC Roust-A-Bout M99 1" | CE109: =117+(117*$CE$5) -> 157.95 | DF109: END
AM110: V3406 SSP 3/4 X 17/32 QR SPKR HD Chrome 155 | AO110: 14 | CC110: VIC Roust-A-Bout M99 2" | CE110: =131+(131*$CE$5) -> 176.85 | DF110: END
B111: Index | J111: Index | R111: Index | AB111: Index | AJ111: Index | AM111: V3406 SSP 3/4 X 17/32 QR SPKR HD White 155 | AO111: 13 | AR111: Index | AZ111: Index | BF111: Index | BQ111: Index | BT111: https://www.pottersignal.com/ | BZ111: Index | CC111: VIC Roust-A-Bout M99 3" | CE111: =192+(192*$CE$5) -> 259.2 | CK111: Index | CR111: Index | DE111: Index | DF111: END
AM112: V3410 QR HSW 3/4 X 17/32 SPKR HD Blk 155 | AO112: 24 | CC112: VIC Roust-A-Bout M99 3.5" | CE112: =221+(221*$CE$5) -> 298.35 | DF112: END
AM113: V3410 QR HSW 3/4 X 17/32 SPKR HD BRASS 155 | AO113: 24 | CC113: VIC Roust-A-Bout M99 4" | CE113: =221+(221*$CE$5) -> 298.35 | DF113: END
AM114: V3410 QR HSW 3/4 X 17/32 SPKR HD CHROME 155 Blk | AO114: 24 | CC114: VIC Roust-A-Bout M99 6" | CE114: =384+(384*$CE$5) -> 518.4 | DF114: END
AM115: V3410 QR HSW 3/4 X 17/32 SPKR HD CHROME 200 Blk | AO115: 24 | CC115: VL0099PTO | CE115: =325+(325*$CE$5) -> 438.75 | DF115: END
AM116: V3411 SSP 11.2 ELO-ECLH SPKR HD CHROME 155 | AO116: 29 | CC116: Weldlet 3 x 0.50 | CE116: =37.22+(37.22*$CE$5) -> 50.247 | DF116: END
AM117: V3506 QR 0.50 Dry SSP Brs V35 155 5.6K VIC Firelock 38" | AO117: =195+N("Head")+22+N("Bracket") -> 217 | CC117: Weldlet 3 x 0.75 | CE117: =37.22+(37.22*$CE$5) -> 50.247 | DF117: END
AM118: V3506 QR 0.50 Dry SSP Brs V35 155 5.6K VIC Firelock 58" | AO118: =+N("Head @")+210+N("Bracket @")+22 -> 232 | CC118: Weldlet 3 x 1.00 | CE118: =38.96+(38.96*$CE$5) -> 52.596 | DF118: END
AM119: V3602 QR 0.50 Dry SSU Brs V36 200 8.0K VIC Firelock SSU | AO119: 80 | CC119: Weldlet 3 x 1.25 | CE119: =48.95+(48.95*$CE$5) -> 66.0825 | DF119: END
AM120: V3606 A-20 NR 135 Cover Plate VIC Firelock | AO120: 13 | CC120: Weldlet 3 x 1.50 | CE120: =44.66+(44.66*$CE$5) -> 60.291 | DF120: END
AM121: V3606 QR 1.00 Dry Pendant 155 K5.6 401 Escutcheon VIC Firelock 12" or 18" | AO121: 140 | BX121: =SUBTOTAL(103,ListWet!$P$113:$P$119) -> 0 | CC121: WROT CxF Adapter (copper) (female) 1.0" | CE121: 11 | DF121: END
AM122: V3606 QR 1.00 Dry Pendant 200 K5.6 401 Escutcheon VIC Firelock 12" or 18" | AO122: 148 | CC122: WROT CxF Adapter (copper) (female) 1.5" | CE122: 32 | DF122: END
AM123: V3610 QR DRY HSW 200 K5.6 VIC Firelock | AO123: 110 | CC123: WROT CxF Adapter (copper) (female) 3/4 x 1/2 " | CE123: 8 | DF123: END
AM124: V3612 DRY HSW & Recessed HSW K8 VIC Firelock | AO124: 95 | CC124: WROT CxM Adapter (copper) (male) | CE124: 21 | DF124: END
AM125: V3800 Concealer Cover Plate White 135 | AO125: 10 | CC125: zSpare | CE125: 35 | DF125: END
B126: Index | J126: Index | R126: Index | AB126: Index | AJ126: Index | AM126: V3801 SR 0.50 Conc K5.6 Ord/Light Haz VIC Firelock | AO126: 18.86 | AR126: Index | AZ126: Index | BF126: Index | BQ126: Index | BZ126: Index | CC126: zSpare | CE126: 65 | CK126: Index | CR126: Index | DE126: Index | DF126: END
AM127: V3801 SR K5.6 Cover Plate VIC Firelock | AO127: 12.75 | DF127: END
AM128: V3802 QR 155 Conc K5.6 VIC Firelock 0.50" Brs | AO128: 16.25 | CC128: =SUBTOTAL(103,Table26[Description]) -> 120 | CI128: =SUBTOTAL(103,Table26[Galvanised]) -> 32 | DF128: END
AM129: V3802 QR K5.6 Cover Plate VIC Firelock | AO129: 9 | DF129: END
AM130: V3806 SP Res 1/2 5.6K Conc BZ 155 Brass | AO130: 14 | DF130: END
AM131: Viking VK545 Dry Pendent head P/N 20783JNE12 12" Heat Resistant coat | AO131: 160 | AP131: Costco #1019 WA32443 | DF131: END
AM132: Viking VK685 BB head see Viking web site
AM133: zSpare 01 | AO133: 6
AM134: zSpare 02
AM135: =SUBTOTAL(103,tblHeads[Description]) & " Items" -> 128 Items | AP135: =SUBTOTAL(103,tblHeads[Notes]) -> 9
AM138: http://www.fppi.com/
AM140: http://www.nibco.com/Valves/Fire-Protection/

Sheet ListSub
B1: Ver 2020-Feb-03 13:22 | E1: SUBCONTRACTORS & Monitoring
H2: Medium Blue 9 | T2: Alarm Devices Index
B3: INDEX | E3: All Ranges must be sorted ALPHABETICALLY on 'Description' | J3: Index | M3: All Ranges must be sorted ALPHABETICALLY on 'Description'
H4: Styles>Format-as-Table | T4: Sprinkler Devices Index
B5: AWP & Rentals | E5: OutSide SubContractors | M5: Monitoring EM24=Craig Popowcer | N5: Cost to FSS | O5: Sell Price | P5: Monthly | Q5: Annualised | T5: AWP & Rentals | W5: AWP & Rentals
B6: Monitoring | E6: Description | F6: CP $Hr | G6: SP $Hr | H6: Column1 | M6: Description | N6: $cost | O6: $sell | P6: $perMo | Q6: REVIEW | R6: Notes | T6: Monitoring | W6: Height | X6: Description | Y6: Day | Z6: Week | AA6: Month | AB6: PkUpAnDroPov
B7: Subs | E7: 01 Core Driller A-Core | F7: 200 | G7: =+F7+(F7/2) -> 300 | M7: A DSC24 Wireless per panel Annual | N7: =+N("C24 ")+17.7+N("E24 ")+6+N("DailyAuto")+1.5+N("BillFee")+1+4.5 -> 30.7 | O7: =12*60 -> 720 | P7: 72 | Q7: =+O7 -> 720 | T7: Subs | W7: 1932 | X7: 19 ft Scissor Lift FSS1930 30 ins wide | Y7: 115 | Z7: 250 | AA7: 450 | AB7: 75
E8: 01 Design KLJ Kent J NICET IV | F8: 55 | G8: =+F8+(F8/2) -> 82.5 | M8: A POTS Line per panel Annual | N8: =6+1.5+4.5+1 -> 13 | O8: =12*55 -> 660 | P8: =+O8/12 -> 55 | Q8: =+O8 -> 660 | W8: 2032 | X8: 20 ft Scissor Lift FSS2032 30 ins wide 3,439 lb | Y8: 125 | Z8: 265 | AA8: 575 | AB8: 75
E9: 01 Electrician KP Electric Sandy | F9: 55 | G9: =+F9+(F9/2) -> 82.5 | M9: A STARLINK SLE-LTEV-CFB-PS RADIO W/ Power supply | N9: 30.7 | O9: =12*60 -> 720 | P9: 3 | Q9: 720 | W9: 2632 | X9: 26 ft Scissor Lift Genie (narrow) 2632 32 ins wide | Y9: 215 | Z9: 365 | AA9: 725 | AB9: 75
E10: 02 Design SFPS Rafael Castillo NICET IV | F10: 55 | G10: =+F10+(F10/2) -> 82.5 | M10: B DSC24 Wireless per panel bi-annual | N10: =6+1.5+4.5+1+17.7 -> 30.7 | O10: =6*61 -> 366 | P10: =+O10/6 -> 61 | Q10: =+O10*2 -> 732 | W10: 2632T | X10: 26 ft Scissor Lift Genie 2632 32 ins wide w/Howe Trailer | Y10: 215 | Z10: 450 | AA10: 950 | AB10: 75
E11: 02 Electrician Girres James Brother | F11: 50 | G11: =+F11+(F11/2) -> 75 | M11: B POTS DigiLine per panel bi-annual | N11: =6+1.5+4.5+1 -> 13 | O11: =6*56 -> 336 | P11: =+O11/6 -> 56 | Q11: =+O11*2 -> 672 | W11: 2646 | X11: 26 ft Scissor Lift Genie 2646 46 ins wide 4,530lb 2 5/16" | Y11: 120 | Z11: 325 | AA11: 650 | AB11: 75
E12: 03 Fabrication All Fab | G12: enter $-> | M12: C DSC24 Wireless per panel per quarter | N12: =6+1.5+4.5+1+17.7 -> 30.7 | O12: =3*63 -> 189 | P12: =+O12/3 -> 63 | Q12: =+O12*4 -> 756 | W12: 2630 | X12: 26 ft Scissor Lift JLG2646ES 46 ins wide | Y12: 125 | Z12: 265 | AA12: 575 | AB12: 75
E13: 03 Fabrication Ferguson Fab | G13: enter $-> | M13: C POTS DigiLine per panel quarter | N13: =6+1.5+4.5+1 -> 13 | O13: =3*58 -> 174 | P13: =+O13/3 -> 58 | Q13: =+O13*4 -> 696 | W13: 3232 | X13: 32 ft Scissor Lift GS3232 32 ins wide | Y13: 165 | Z13: 450 | AA13: 950 | AB13: 75
E14: 04 Design EST Spectrum Brock Sere | G14: enter $-> | M14: E NapCo Wireless per panel per month | N14: =6+1.5+4.5+1+17.7 -> 30.7 | O14: 66 | P14: =+O14/1 -> 66 | Q14: =+O14*12 -> 792 | W14: 3246 | X14: 32 ft Scissor Lift JLG3246ES 46 ins wide | Y14: 150 | Z14: 445 | AA14: 650 | AB14: 75
E15: 04 Design PCI Brady Haws et al | G15: enter $-> | M15: E POTS DigiLine per panel per month | N15: =6+1.5+4.5+1 -> 13 | O15: 60 | P15: =+O15/1 -> 60 | Q15: =+O15*12 -> 720 | W15: 3947 | X15: 39 ft Scissor Lift Haulotte 3947 47" wide | Y15: 375 | Z15: 700 | AA15: 1200 | AB15: 75
E16: 05 Design RDF Engineering & Fazzio | F16: 550 | G16: =+F16+(F16/2) -> 825 | M16: Numerex-Sierra for UpLink | N16: 0 | O16: =12*60 -> 720 | P16: 72 | Q16: 0 | W16: 4076 | X16: 40 ft Boom lift G4076 Narrow Knuckle with rotator Electric | Y16: 340 | Z16: 825 | AA16: 1920 | AB16: 140
E17: 05 Insulation Cardall USI TENTING | G17: enter $-> | M17: z DSC24 Monitoring plus WireLess Connection. Annual Contract | O17: 720 | P17: =+O17/12 -> 60 | W17: 4069 | X17: 40 ft Scissor lift JLG 4069LE 69" Wide | Y17: 370 | Z17: 740 | AA17: 1500 | AB17: 125
E18: 09 a Compliance Reporting Fee generic | G18: 30 | M18: z POTS Monitoring only. YOU pay for Line. Annual Contract | O18: 660 | P18: =+O18/12 -> 55 | W18: 4525 | X18: 45 ft Boom lift Articulated Battery Genie 4525 | Y18: 325 | Z18: 650 | AA18: 1600 | AB18: 130
E19: 09 b Compliance Reporting Fee American Fork | G19: 55 | M19: =SUBTOTAL(103,Table03[Description])&" Items" -> 12 Items | W19: 450A | X19: 45 ft Boom lift Articulated Battery JLG E450A | Y19: 325 | Z19: 650 | AA19: 1600 | AB19: 130
E20: 10 Consulting Arun or Other | F20: 80 | G20: 100 | M20: MUST SELECT 'Supervisory 300secs' to see the 4MByte option | W20: 4575 | X20: 45 ft Boom Lift Knuckle JLG4075 | Y20: 325 | Z20: 650 | AA20: 1600 | AB20: 130
W21: 6972 | X21: 69-72 Boom Lift Compact Crawler Teupen LE023GT | Y21: 1762 | Z21: 4980 | AA21: 13762 | AB21: 150
W22: 80 | X22: 80 ft Boom Articulated | Y22: 600 | Z22: 2000 | AA22: 4800 | AB22: =150/2 -> 75
W23: 550 | X23: Boom Lift Compact Crawler JLG x550-AJ | Y23: 782 | AB23: 110
W24: 32 | X24: Compressor Cage 32 CFM truck deck | Y24: 60 | Z24: 300 | AA24: 500 | AB24: 75
M25: DSC Annual | N25: 720 | O25: =+N25 -> 720 | P25: aa | W25: 50 | X25: Compressor Hose w/Chicago Fittings | Y25: 10 | Z25: 40 | AA25: 80 | AB25: 10
M26: POTS Annual | N26: 660 | O26: =+N26 -> 660 | P26: aa | W26: 185 | X26: Compressor Trailered 185 CFM | Y26: 140 | Z26: 365 | AA26: 895 | AB26: 75
M27: DSC Bi-Annual | N27: 366 | O27: =+N27*2 -> 732 | P27: bb | Q27: =+N27/6 -> 61 | W27: 375 | X27: Compressor Trailered 375 CFM | Y27: 220 | Z27: 575 | AA27: 1400 | AB27: 75
M28: POTS Bi-Annual | N28: 336 | O28: =+N28*2 -> 672 | P28: bb | Q28: =+N28/6 -> 56 | W28: 15 | X28: Dumpster 15 yd $100 | Y28: 165 | Z28: 165 | AA28: 165 | AB28: 45
M29: DSC Quarterly | N29: 189 | O29: =+N29*3 -> 567 | P29: cc | Q29: =+N29/3 -> 63 | W29: 8000 | X29: Fork Lift Howe 8000 lb | Y29: 150 | Z29: 575 | AA29: 1500 | AB29: 75
M30: POTS Quarterly | N30: 174 | O30: =+N30*3 -> 522 | P30: cc | Q30: =+N30/3 -> 58 | W30: 2 | X30: Hitch w/Ball & Pin (trailer) | Y30: 13 | Z30: 50 | AA30: 100 | AB30: 13
M31: DSC Monthly | N31: 65 | O31: =+N31*12 -> 780 | P31: dd | W31: 21 | X31: Pallet Jack Narrow = 21" | Y31: 35 | Z31: 240 | AA31: 750 | AB31: 75
M32: POTS Monthly | N32: 60 | O32: =+N32*12 -> 720 | P32: dd | W32: 27 | X32: Pallet Jack Narrow = 27" | Y32: 45 | Z32: 315 | AA32: 1200 | AB32: 75
W33: 30 | X33: Personnel lift Genie AWP30 ft | Y33: =120+35 -> 155 | AB33: 75
N34: Index | W34: 6000 | X34: Reach Lift 6000 lb | Y34: 350 | Z34: 900 | AA34: 2050 | AB34: 95
J35: Index | T35: Index | W35: 7000 | X35: Trailer Hydraulic FSS 7000lb Lift Bed | Y35: 135 | Z35: 380 | AA35: 925 | AB35: 25
W36: 2703 | X36: Trailer Hydraulic Lift Bed | Y36: 150 | Z36: 385 | AA36: 950 | AB36: 0
W37: 20 | X37: Trailer w/winch FSS | Y37: 100 | Z37: 275 | AA37: 450 | AB37: 25
W38: 19 | X38: zzSpare | Y38: 100 | Z38: 215 | AA38: 450 | AB38: 75
X39: =SUBTOTAL(103,Table01[Description]) -> 32

Sheet Misc
B1: Ver 2021-Jan-06 11:03 | E1: Bits & Pieces
B3: INDEX | E3: All Ranges must be sorted ALPHABETICALLY on 'Description' | I3: Index | K3: IMPLEMENTED 2016-10-16
J5: END
E6: Misc | F6: =(12)% -> 0.12 | G6: =(12)% -> 0.12 | J6: END
E7: Description | F7: $ | G7: $2 | H7: Notes | I7: Column1 | J7: END
E8: A1 Drivers cPVC Screw for Tolco 22,23,24 500 in box | G8: 30 | J8: END
E9: All Thread 1/2 Black 10ft length 0.57 per ft | F9: 0.58 | G9: =+Table2911[[#This Row],[$]]*10 -> 5.8 | J9: END
E10: All Thread 3/4 Black 10ft length 1.20 per ft | F10: 0.62 | G10: =+Table2911[[#This Row],[$]]*10 -> 6.2 | J10: END
E11: All Thread 3/8 Black 10ft length 0.38 per ft | F11: 0.55 | G11: =+Table2911[[#This Row],[$]]*10 -> 5.5 | J11: END
E12: All Thread 3/8 Rod Chaser tool Cleans threadss after a cut | G12: 44 | J12: END
E13: All Thread 3/8 Rod Coupler (joins All thread rod) | G13: 5.75 | J13: END
E14: Bac-T Pack Tester Kit black, red yellow (Potter Electric) | G14: 203 | J14: END
E15: Barricade Tape per 1,000ft | G15: 10 | J15: END
E16: Battery Lithium Ion Millwaukee M18 Red XC6.0 extended | F16: 119 | G16: 60 | J16: END
E17: Bell Alarm External Gong 120V AC 10" add $11 for WeatherPf BackBox | G17: 36 | J17: END
E18: Bell Alarm External Gong 120V AC 6" add $11 for WeatherPf BackBox | G18: 25 | J18: END
E19: Bell Alarm External Gong 12VDC 10" add $11 for WeatherPf BackBox | G19: 36 | J19: END | K19: =5/8 -> 0.625
E20: Bell Alarm External Gong 12VDC 6" add $11 for WeatherPf BackBox | G20: 29 | J20: END
E21: Bell Alarm External Gong 12VDC 8" add $11 for WeatherPf BackBox | G21: 38 | J21: END
E22: Chain for signs at riser. Per foot | G22: 0.25 | J22: END
E23: Chop Saw DeWalt 14" HD 15 Amp $215 | G23: =215/5 -> 43 | J23: END
E24: CPVC DeBur tool for CPVC 0.5-1-0.5" | G24: 24 | J24: END
E25: CPVC Glue One-Step One Pint | G25: 11 | J25: END
E26: CPVC Glue One-Step One Quart | G26: 21 | J26: END
E27: CPVC Pipe Cutter 1.25" - 2" | F27: 56 | G27: 60 | J27: END
E28: CPVC Pipe Cutter 3/4" - 2" (here I put 1/4 of our cost) | F28: 195 | G28: =+F28/4 -> 48.75 | J28: END
E29: CPVC Pipe Cutter Hand Cutter FFAB (here I put 1/4 of our cost) | F29: 110 | G29: 28 | J29: END
E30: CPVC Pipe Cutter INSIDE FFAB (here I put 1/4 of our cost) | F30: 225 | G30: 55 | J30: END
E31: Cutting Oil Rigid per gallon | G31: 28 | J31: END
E32: Drill Bits (for Wood, Hammer drill etc.) | F32: 4 | G32: 25 | J32: END
E33: Drill portable. Milwaukee 0.5" chuck (here I put 1/4 of our cost) | F33: 170 | G33: =+F33/4 -> 42.5 | J33: END
E34: Drill portable. Milwaukee 5/8" Hammer (here I put 1/8 of our cost) | F34: 705 | G34: 35 | J34: END
E35: Dura Ink 15 Marker pen | G35: 1.25 | J35: END
E36: Electrical Breaker B120 S01- SP20A | F36: 30 | G36: 30 | J36: END
E37: Electrical Breaker Shunt-Trip B12000 S01- SP20A Siemens | F37: 75 | G37: 75 | J37: END
E38: Electrical Breaker Shunt-Trip B21500 S01- DP15A Siemens | F38: 75 | G38: 75 | J38: END
E39: FeDex Binding per one NFPA-25 Red cover | G39: 5.5 | J39: END
E40: FeDex Binding per one NFPA-72 Red cover | G40: 5.5 | J40: END
E41: Fire Caulk Ferguson 12 in a case, price ea tube is | G41: 12 | J41: END
E42: Fire Caulk HD Supply 12 in a case, price ea tube is | G42: 12 | J42: END
E43: Flashlight Nebo Slyde King 6434 rechargeable LED wok light | G43: 36 | J43: END
E44: Foam insulating expansion per can | G44: 8 | J44: END
E45: Gloves per pair Black Nitr Foam Coat | G45: 4.25 | J45: END
E46: Hole Saw 1.00" ARBOR QC (it means it comes with a shaft-drill) | G46: 26.25 | J46: END
E47: Hole Saw 1.50" | G47: 13 | J47: END
E48: Hole Saw 1.75" | G48: 13.55 | J48: END
E49: Hole Saw 2.00" | G49: 15.59 | J49: END
E50: Hole Saw 2.50" | G50: 17.5 | J50: END
E51: Hole Saw 2.75" | G51: 16.75 | J51: END
E52: Hole Saw 3.00" | G52: 17 | J52: END
E53: Hole Saw 3.50" | G53: 18 | J53: END | K53: 1
E54: Hole Saw 4.00" | G54: 26 | J54: END
E55: Hole Saw 4.50" | G55: 51 | J55: END
E56: Hole Saw 7/16" ARBOR QC | G56: 19 | J56: END
E57: Hole Saw Keyhole | G57: 12 | J57: END
E58: Jim-Caps with Hose Clamp | G58: 3 | J58: END
E59: Laser Measure 135ft $100 | G59: 100 | J59: END
E60: Level Torpedo | G60: 32 | J60: END
E61: LF 1# Prem Silver Solder per roll | G61: 24 | J61: END
E62: LF 14gal ASME Expansion Tank | G62: 2500 | J62: END
E63: LF 2.1gal ASME Expansion Tank | G63: 1250 | J63: END
E64: Magnetic bit holder 3" | G64: 6.85 | J64: END
E65: Marker VLV Action Paint Red/Whit/ or Yell each | G65: 4.25 | J65: END
B66: Index | E66: Metaprod SP316100 1.50"x3.0" 16Ga Nail Safety Plate Box of 100=$10 | F66: 0.1 | G66: 10 | J66: END
E67: Pipe Dope | G67: 47.66 | J67: END
E68: Pipe Sleeve Blue/Cold IPS 2"x 200ft box LP3016 (AKA Cock or Blue Sleeve) | G68: 42 | H68: Link | J68: END
E69: Pipe Wrap Mtn States | G69: 165 | J69: END
E70: Plastic sheeting per Roll | G70: 20 | J70: END
E71: Porta Band blades Milwaukee each | G71: 9 | J71: END
E72: Punch OC 2 Center & Level | G72: 69 | J72: END
E73: Respirator 3M 3pk | G73: 5 | J73: END
E74: Rigid Die Set 1 to 2 " HS (here I put 1/4 of our cost) | F74: 170 | G74: =+F74/4 -> 42.5 | J74: END
E75: Rigid Pipe Extractor .75" Model 84 35615 | G75: 26 | J75: END
E76: Rigid Pipe Extractor 1.00" Model 85 35620 | G76: 27 | J76: END
E77: Rigid Pipe Extractor 1.25" Model 86 35625 | G77: 28 | J77: END
E78: Rigid Pipe Extractor 1.5" Model 87 35630 | G78: 32 | J78: END
E79: Rigid Pipe Extractor SET 1.5" Model 87 35630 | J79: END
E80: Riser Sign "Fire Sprinkler Riser Room" 9" x 15" | G80: 37 | J80: END
E81: Sammy Xpress Install Tool | F81: 113 | G81: 30 | J81: END
E82: Screwdriver 4-in-1 Electronic | G82: 17
E83: Signs for riser stack: AntiFrz, Alarm Test, Auxiliary Drain, Control Valve, Main Drain etc. | F83: 0.55 | G83: 1
E84: Tape Pipe Grinnell PT 1000 | G84: 32
E85: Tape Teflon 0.75" x 520" 80 rolls to a ctn. Per roll is | G85: 1
E86: Terry Cloth (3 towels) | G86: 5
E87: Thread Seal Blue 75 1 pint | G87: 21
E88: Thread Seal Blue 75 1 quart | G88: 30
E89: Toggles 1/2-13 $97.36 per 100 | G89: 1
E90: Trubolt (RedHead) Wedge Anchr 3/8x2-3/4 CS WA38234 $106 per 100 | G90: =(105.287/100) -> 1.05287
E91: Unistrut $2.5 per foot. Or per 10 feet it is: | F91: 2.5 | G91: 25
E92: Vic Lube $11 per Quart + Brush $2 | G92: 13
E93: WD-40 8oz | G93: 7 | I93: Index
E94: Weld Sealant ANAEROBIC 1-LITER | G94: 24
E95: Wrench Impact Milwaukee 0.5" (here I put 1/4 of our cost) | F95: 160 | G95: =+F95/4 -> 40
E96: Wrench Pipe Rigid #31100 Alum 18" $62 (here I put 1/4 of our cost) | F96: 62 | G96: 15.5
E97: Wrench Pipe Rigid #31105 Alum 24" $140 (here I put 1/4 of our cost) | F97: 140 | G97: =140/4 -> 35
E98: Lock Break-away brs Anvil | G98: 14
E103: All Ranges must be sorted ALPHABETICALLY on 'Description'

Sheet Calcs
B1: Ver 2016-May-17 21:00
D2: All Ranges must be sorted ALPHABETICALLY on 'Description'
D6: List | E6: T | F6: $ | J6: Automatic Sprinkler | K6: NFPA-13
D7: One | E7: 6 | F7: 3 | J7: One or two family dwelling | K7: NFPA-13D
D8: Two | E8: 6 | F8: 2 | J8: Residential occupancy up to four stories | K8: NFPA-13R
D9: Three | F9: 1 | J9: National Fire Alarm Code | K9: NFPA-72
J11: Day Care = Group E Occupancy
D12: =SUBTOTAL(103,Calcs!$D$7:$D$11) &" Items" -> 3 Items
B15: Need to create a 'Build' list
C16: ie pick a Compress, add Pads, Floor Mounting Bolts, AMD Pipe, Gauges. Blow-Down, Dessicant
J21: Alarm Monitoring Rates | P21: as at:: | Q21: 2016-04-26
M22: POTS | P22: DSC
C23: EST | D23: -FSS Does not supply only via Spectrum-Brock | E23: GE | K23: Number of | L23: pay every | O23: Over the | R23: Over the
C24: FIKE | D24: -FSS Does not supply | J24: Desc | K24: Payments | L24: x Months | M24: Rate | N24: Invoice | O24: Year | P24: Rate | Q24: Invoice | R24: Year
C25: FIRE-LITE | D25: -FSS Does not supply | J25: Pay once a Year | K25: 1 | L25: 12 | M25: 55 | N25: =+M25*$L25 -> 660 | O25: =+M25*$K25*$L25 -> 660 | P25: 60 | Q25: =+P25*$L25 -> 720 | R25: =+P25*$K25*$L25 -> 720
C26: GAMEWELL | D26: -FSS Does not supply
C27: NOTIFIER | D27: -FSS Does not supply | J27: Pay twice a Year | K27: 2 | L27: 6 | M27: 56 | N27: =+M27*$L27 -> 336 | O27: =+M27*$K27*$L27 -> 672 | P27: 61 | Q27: =+P27*$L27 -> 366 | R27: =+P27*$K27*$L27 -> 732
C28: SIMPLEX | D28: -FSS Does not supply
J29: Pay Quarterly | K29: 4 | L29: 3 | M29: 58 | N29: =+M29*$L29 -> 174 | O29: =+M29*$K29*$L29 -> 696 | P29: 63 | Q29: =+P29*$L29 -> 189 | R29: =+P29*$K29*$L29 -> 756
C30: Edwards/Vigilant | D30: -FSS YES | E30: UTC
C31: Silent Knight | D31: -FSS YES | J31: Pay each month | K31: 12 | L31: 1 | M31: 60 | N31: =+M31*$L31 -> 60 | O31: =+M31*$K31*$L31 -> 720 | P31: 65 | Q31: =+P31*$L31 -> 65 | R31: =+P31*$K31*$L31 -> 780
D33: BOWS & LOC | J33: POTS rate is $60 minimum per month | L33: or $660 per year
D34: Dialer Units | J34: DSC rate is $65 minimum per month | L34: or $720 per year
D35: Horns
D36: Horn-Strobes | J36: POTS = Plain Old Telephone Service | L36: AKA Landline
D37: Misc
D38: Monitoring EM24=Craig Popowcer | J38: DSC = Digital Service Cellular | L38: or Subscriber
D39: Parts & Accessories
D40: Power Supplies
D41: Pull Stations
D42: SK Addressable Devices
D43: SK Other Devices
D44: Smokes & Detectors
D45: Strobes
B47: For the drop-downs to copy correctly to other columns
C48: (i.e. to the right in the worksheet), use
C49: relative column (without the $ sign) and
C50: absolute row (with $) references like = Sheet2!B$1.
B52: To copy the dropdowns to other rows
C53: (i.e. down to other cells in the column), then use
C54: absolute column (with $) and
C55: relative row (without $) references like = Sheet2!$B1.

Sheet Instructions
B1: Ver 2017-Nov-07 18:07
C4: Normally the database should remain minimised. However if you need to see the database:
C9: A | D9: Choose
C10: B | D10: then Click
D21: in the pop-up
C22: C | D22: Click [OK]
D25: to See the tabs
D26: at the bottom of
C27: D | D27: the workbook
D28: window
K34: This Page
E35: Alarm | F35: Sprinkler | G35: Subcontractors | I35: Odds & Ends
E36: Parts | F36: Parts | H36: to FSS

Sheet Sheet1
A1: F3 Paste
C4: AFChemDesc | D4: =ListWet!$F$7:$F$9 | F4: AlmAddressSKhdg | G4: =ListAlm!$AN$6
C5: AFChemEtAl | D5: =ListWet!$F$7:$H$9 | F5: AlmDialersHdg | G5: =ListAlm!$F$22
C6: AFgalPrice | D6: =ListWet!$H$7:$H$9 | F6: AlmEstHornsHdg | G6: =ListAlm!$N$20
C7: AlmBowDesc | D7: =ListAlm!$F$7:$F$14 | F7: AlmEstHShdg | G7: =ListAlm!$N$28
C8: AlmBowEtAl | D8: =ListAlm!$F$7:$H$14 | F8: AlmEstPullHdg | G8: =ListAlm!$N$50
C9: AlmDAddressSKDesc | D9: =ListAlm!$AN$8:$AN$32 | F9: AlmHdgBows | G9: =ListAlm!$F$5
C10: AlmDAddressSKetAl | D10: =ListAlm!$AN$8:$AQ$32 | F10: AlmHdgPartAccessory | G10: =ListAlm!$CG$6 | I10: subsDesc | J10: =ListSub!$E$7:$E$17 | L10: AWPDay | M10: =ListSub!$Z$7:$Z$26
C11: AlmDDetectESTDesc | D11: =ListAlm!$N$8:$N$15 | F11: AlmHdgPullGeneric | G11: =ListAlm!$BW$22 | I11: subsEtAl | J11: =ListSub!$E$7:$H$17 | L11: AWPDescription | M11: =ListSub!$Y$7:$Y$26
C12: AlmDDetectESTetAl | D12: =ListAlm!$N$8:$Q$15 | F12: AlmHdgSSStobes | G12: =ListAlm!$AX$59 | I12: wetMiscPartsDesc | J12: =Misc!$E$8:$E$64 | L12: AWPHeight | M12: =ListSub!$X$7:$X$26
C13: AlmDDetectHKDesc | D13: =ListAlm!$V$8:$V$11 | F13: AlmHdgVSHornzTitle | G13: =ListAlm!$BE$19 | I13: wetMiscPartsEtAl | J13: =Table2911 | L13: AWPMonth | M13: =ListSub!$AB$7:$AB$26
C14: AlmDDetectHKetAl | D14: =ListAlm!$V$8:$Y$11 | F14: AlmHdgVSPullStnTitle | G14: =ListAlm!$BE$50 | L14: AWPperiod | M14: =ListSub!$Z$6:$AB$6
C15: AlmDDetectHWDesc | D15: =ListAlm!$AF$8:$AF$20 | F15: AlmHdgVSStrobezTitle | G15: =ListAlm!$BE$58 | L15: AWPWeek | M15: =ListSub!$AA$7:$AA$26
C16: AlmDDetectHWetAl | D16: =Table37 | F16: AlmHdgVSzMiscTitle | G16: =ListAlm!$BE$67 | L16: equipRent | M16: =ListSub!$Y$7:$AC$26
C17: AlmDDetectSKDesc | D17: =ListAlm!$AN$41:$AN$42 | F17: AlmHdgVSzOtherTitle | G17: =ListAlm!$BE$79
C18: AlmDDetectSKEtAl | D18: =ListAlm!$AN$41:$AQ$42 | F18: AlmHWBattHdg | G18: =ListAlm!$AF$40
C19: AlmDDetectSSDesc | D19: =ListAlm!$AX$8:$AX$12 | F19: AlmHWDetectSmokesHdg | G19: =ListAlm!$AF$6
C20: AlmDDetectSSetAl | D20: =ListAlm!$AX$8:$BA$12 | F20: AlmHWhornsHdg | G20: =ListAlm!$AF$26
C21: AlmDDetectVSDesc | D21: =ListAlm!$BE$8:$BE$11 | F21: AlmHWHornStrobezHdg | G21: =ListAlm!$AF$32
C22: AlmDDetectVSetAl | D22: =ListAlm!$BE$8:$BH$11 | F22: AlmPanelESThdg | G22: =ListAlm!$BO$6
C23: AlmDHornsESTDesc | D23: =ListAlm!$N$22:$N$24 | F23: AlmPanelHWhdg | G23: =ListAlm!$BO$22
C24: AlmDHornsESTetAl | D24: =ListAlm!$N$22:$Q$24 | F24: AlmPanelSKhdg | G24: =ListAlm!$BO$29
C25: AlmDHornsHKDesc | D25: =ListAlm!$V$22:$V$24 | F25: AlmPanelVShdg | G25: =ListAlm!$BO$47
C26: AlmDHornsHKetAl | D26: =ListAlm!$V$22:$Y$24 | F26: AlmSKBatterriesHdg | G26: =ListAlm!$AN$64
C27: AlmDHornsHWDesc | D27: =ListAlm!$AF$28:$AF$29 | F27: AlmSSHornsHdg | G27: =ListAlm!$AX$19
C28: AlmDHornsHWetAl | D28: =ListAlm!$AF$28:$AI$29 | F28: AlmSSHornStobesHdg | G28: =ListAlm!$AX$28
C29: AlmDHornsSKDesc | D29: =ListAlm!$AN$51:$AN$52 | F29: AlmSSMiscHdg | G29: =ListAlm!$AX$75
C30: AlmDHornsSKEtAl | D30: =ListAlm!$AN$51:$AQ$52 | F30: AlmVSBatteriesHdg | G30: =ListAlm!$BE$37
C31: AlmDHornsSSDesc | D31: =ListAlm!$AX$21:$AX$22 | F31: AlmVSDetectHdg | G31: =ListAlm!$BE$6
C32: AlmDHornsSSetAl | D32: =ListAlm!$AX$21:$BA$22 | F32: AlmVSHornStrobezHdg | G32: =ListAlm!$BE$28
C33: AlmDHornStrobeHKDesc | D33: =ListAlm!$V$31:$V$33 | F33: TitleAFChem | G33: =ListWet!$F$5:$F$5
C34: AlmDHornStrobeHKetAl | D34: =ListAlm!$V$31:$Y$33 | F34: TitleAlmFACP | G34: =ListAlm!$BO$5
C35: AlmDHornStrobeHWDesc | D35: =ListAlm!$AF$34:$AF$35 | F35: TitleHochikiDevices | G35: =ListAlm!$V$5
C36: AlmDHornStrobeHWetAl | D36: =ListAlm!$AF$34:$AI$35 | F36: TitleAlmHoneywell | G36: =ListAlm!$AF$5
C37: AlmDHornStrobeSKDesc | D37: =ListAlm!$AN$58:$AN$59 | F37: TitleAlmSSensor | G37: =ListAlm!$AX$5
C38: AlmDHornStrobeSKEtAl | D38: =ListAlm!$AN$58:$AQ$59 | F38: TitleEstDevices | G38: =ListAlm!$N$5
C39: AlmDHornStrobeSSDesc | D39: =ListAlm!$AX$30:$AX$41 | F39: TitleSilentKnightDevices | G39: =ListAlm!$AN$5
C40: AlmDHornStrobeSSetAl | D40: =ListAlm!$AX$30:$BA$41 | F40: TitleVigilantDevices | G40: =ListAlm!$BE$5
C41: AlmDHornStrobeVSDesc | D41: =ListAlm!$BE$30:$BE$31
C42: AlmDHornStrobeVSetAl | D42: =ListAlm!$BE$30:$BH$31
C43: AlmDHornsVSDesc | D43: =ListAlm!$BE$21:$BE$23
C44: AlmDHornsVSetAl | D44: =ListAlm!$BE$21:$BH$23
C45: AlmDialerDesc | D45: =ListAlm!$F$24:$F$33
C46: AlmDialerEtAl | D46: =ListAlm!$F$24:$I$33
C47: AlmDMiscSKDesc | D47: =ListAlm!$AN$106:$AN$107
C48: AlmDMiscSKetAl | D48: =ListAlm!$AN$106:$AQ$107
C49: AlmDMiscVSDesc | D49: =ListAlm!$BE$69:$BE$73
C50: AlmDMiscVSetAl | D50: =ListAlm!$BE$69:$BH$73
C51: AlmDOtherHKDesc | D51: =ListAlm!$V$72:$V$73
C52: AlmDOtherHKetAl | D52: =ListAlm!$V$72:$Y$73
C53: AlmDOtherHWDesc | D53: =ListAlm!$AF$66:$AF$67
C54: AlmDOtherHWetAL | D54: =ListAlm!$AF$66:$AI$67
C55: AlmDOtherSKDesc | D55: =ListAlm!$AN$98:$AN$99
C56: AlmDOtherSKEtAl | D56: =ListAlm!$AN$98:$AQ$99
C57: AlmDOtherVSDesc | D57: =ListAlm!$BE$81:$BE$84
C58: AlmDOtherVSetAl | D58: =ListAlm!$BE$81:$BH$84
C59: AlmDPowerHWDesc | D59: =ListAlm!$AF$42:$AF$45
C60: AlmDPowerHWetAl | D60: =ListAlm!$AF$42:$AI$45
C61: AlmDPowerVSDesc | D61: =ListAlm!$BE$39:$BE$43
C62: AlmDPowerVSetAl | D62: =ListAlm!$BE$39:$BH$43
C63: AlmDPsBattSKDesc | D63: =ListAlm!$AN$66:$AN$69
C64: AlmDPsBattSKetAl | D64: =ListAlm!$AN$66:$AQ$69
C65: AlmDPullESTDesc | D65: =ListAlm!$N$52:$N$55
C66: AlmDPullESTetAl | D66: =ListAlm!$N$52:$Q$55
C67: AlmDPullSKDesc | D67: =ListAlm!$AN$78:$AN$82
C68: AlmDPullSKEtAl | D68: =ListAlm!$AN$78:$AQ$82
C69: AlmDPullVSDesc | D69: =ListAlm!$BE$52:$BE$53
C70: AlmDPullVSetAl | D70: =ListAlm!$BE$52:$BH$53
C71: AlmDStrobeESTDesc | D71: =ListAlm!$N$62:$N$63
C72: AlmDStrobeESTetAl | D72: =ListAlm!$N$62:$Q$63
C73: AlmDStrobeSKDesc | D73: =ListAlm!$AN$90:$AN$91
C74: AlmDStrobeSKetAl | D74: =ListAlm!$AN$90:$AQ$91
C75: AlmDStrobeSSDesc | D75: =ListAlm!$AX$61:$AX$67
C76: AlmDStrobeSSetAl | D76: =ListAlm!$AX$61:$BA$67
C77: AlmDStrobeVSDesc | D77: =ListAlm!$BE$60:$BE$62
C78: AlmDStrobeVSetAl | D78: =ListAlm!$BE$60:$BH$62
C79: AlmDzMiscESTDesc | D79: =ListAlm!$N$71:$N$72
C80: AlmDzMiscESTetAl | D80: =ListAlm!$N$71:$Q$72
C81: AlmDzMiscSSDesc | D81: =ListAlm!$AX$77:$AX$79
C82: AlmDzMiscSSetAl | D82: =ListAlm!$AX$77:$BA$79
C83: AlmHStrobeESTDesc | D83: =ListAlm!$N$30:$N$36
C84: AlmHStrobeESTetAl | D84: =ListAlm!$N$30:$Q$36
C85: AlmMonitorDesc | D85: =ListSub!$M$7:$M$16
C86: AlmMonitorEtAl | D86: =ListSub!$M$7:$R$16
C87: AlmPanelESTdesc | D87: =ListAlm!$BO$8:$BO$18
C88: AlmPanelESTetAl | D88: =ListAlm!$BO$8:$BR$18
C89: AlmPanellHWdesc | D89: =ListAlm!$BO$24:$BO$25
C90: AlmPanellHWellEtAl | D90: =ListAlm!$BO$24:$BR$25
C91: AlmPanelSKdesc | D91: =ListAlm!$BO$31:$BO$43
C92: AlmPanelSKetAl | D92: =ListAlm!$BO$31:$BR$43
C93: AlmPanelVigDesc | D93: =ListAlm!$BO$49:$BO$66
C94: AlmPanelVigEtAl | D94: =ListAlm!$BO$49:$BR$66
C95: AlmPartsAccessoriesDesc | D95: =ListAlm!$CG$8:$CG$31
C96: AlmPartsAccessoriesEtAl | D96: =ListAlm!$CG$8:$CJ$31
C97: AlmPSupplyDesc | D97: =ListAlm!$BW$7:$BW$13
C98: AlmPSupplyEtAl | D98: =ListAlm!$BW$7:$BZ$13
C99: AlmPullStnDesc | D99: =ListAlm!$BW$24:$BW$25
C100: AlmPullStnEtAl | D100: =ListAlm!$BW$24:$BZ$25
C101: AWPDay | D101: =ListSub!$Y$7:$Y$26
C102: AWPDescription | D102: =ListSub!$X$7:$X$26
C103: AWPHeight | D103: =ListSub!$W$7:$W$26
C104: AWPMonth | D104: =ListSub!$AA$7:$AA$26
C105: AWPperiod | D105: =ListSub!$Y$6:$AA$6
C106: AWPWeek | D106: =ListSub!$Z$7:$Z$26
C107: CategoryWetLst | D107: =ListWet!$F$13:$F$30
C108: ElbowMaterialType | D108: =ListWet!$U$6:$Y$6
C109: equipRent | D109: =ListSub!$X$7:$AB$26
C110: HangersEtAl | D110: =ListWet!$AC$7:$AF$36
C111: HangersList | D111: =ListWet!$AC$7:$AC$36
C112: mechTeezEtAl | D112: =ListWet!$AZ$7:$BB$21
C113: pipeDiam | D113: =ListWet!$BG$8:$BG$17
C114: pipeEtAl | D114: =ListWet!$BG$8:$BM$17
C115: pipeType | D115: =ListWet!$BH$7:$BM$7
C116: PSbatt | D116: =ListAlm!$BW$5
C117: sprinkHeadsAll | D117: =ListWet!$AK$7:$AM$63
C118: sprinkHeadsList | D118: =ListWet!$AK$7:$AK$63
C119: sprinkWrenchAll | D119: =ListWet!$AS$7:$AU$14
C120: sprinkWrenchList | D120: =ListWet!$AS$7:$AS$14
C121: subsDesc | D121: =ListSub!$E$7:$E$17
C122: subsEtAl | D122: =ListSub!$E$7:$H$17
C123: tblDryRiser | D123: =ListWet!$L$7:$P$19
C124: tblRiserDryComponents | D124: =ListWet!$L$7:$P$19

Sheet Notes
D4: United Technologies Corp BRANDS:
D5: UTC owns Edwards which owns FireShield
D6: UTC owns Edwards which owns Vigilant which owns Genesis
D7: UTC owns Edwards which owns Walter Kidde
D8: UTC owns InterLogic assets
D9: UTC owns Otis Elevator, Pratt & Whitney
D11: ESL made by Fyrnetics Ltd. HK & CN
D14: FCI = Fire Control Instruments aka Honeywell GW-FCI
D15: GW = Gamewell aka Honeywell GW-FCI
D16: SD = Hochiki Compatible with Silent Kinight
D17: SK = Silent Knight aka Honeywell GW-FCI
D18: SS = System Sensor aka Honeywell
D19: UTC = Kidde-Fenwall Controls=MyEddie
D20: UTC = United Technologies Corp aka Goodrich, Otis, Carrier
D21: UTC = United Technologies Corp aka Kidde(Czech), Chubb, Vigilant, Edwards
D22: UTC = used to be United Aircraft Corp. owns Pratt & Whitney
D23: VS = Vigilant ak GE aka UTC
